Cogmind - Beta 15 @@@ ROGUE MODE // 2025.06.15 @ 02:27:02 Player: morimori Result: Destroyed by S-43 Plague with Heavy Machine Gun Performance ------------- Evolutions (9) 4500 Regions Visited (37) 7400 Robots Destroyed (626) 3130 Value Destroyed (31680) 31680 Prototype IDs (67) 1340 Alien Tech Used (14) 2800 Bonus (27392) 27392 TOTAL SCORE: 78242 Bonus ------- Triggered High Security 500 High Alert Combat Kills 15654 Follower Combat Kills 2194 Network Hubs Disabled 200 Met Zhirov 300 Met Warlord at Base 500 MAIN.C Attacked Warlord 500 Warlord Defense Kills 1358 Built Enhanced Grunts 300 Met R17 at Cetus 500 Used Core Reset Matrix 3000 Met R17 at Research 2000 Scanned by Researcher 500 Pursued by Intercept 1000 Friendly Fire -1114 Cogmind --------- Core Integrity 0/1850 Matter 254/300 Energy 99/100 System Corruption 0% +Membrane Temperature Cool (0) Movement Core (50) Location -1/Access Parts ------- > --- POWER (2) -------- (None) > --- PROPULSION (6) --- (None) > --- UTILITY (14) ----- (None) > --- WEAPON (4) ------- (None) > --- INVENTORY (7) ---- Advanced Heat Sink Experimental Matter Compressor (500) Advanced Sensor Array Armor Integrity Analyzer Advanced Kinecellerator Mini Smartbomb Launcher Peak State ------------ > --- POWER ------------ Light Quantum Reactor Improved Quantum Reactor > --- PROPULSION ------- Enhanced Biometal Leg Centrium Leg Centrium Leg Centrium Leg Heavy Shield Leg > --- UTILITY ---------- High-capacity Storage Unit Experimental Optical Array Experimental Sensor Array Advanced Targeting Computer Experimental Targeting Computer Experimental Core Analyzer Precision Matter Filter Precision Energy Filter Advanced Reaction Control System Heavy Armor Plating Advanced Force Field Phase Redirector Core Physics Calibrator > --- WEAPON ----------- Improved Potential Cannon Linear Accelerator Gamma Bomb Array > --- INVENTORY -------- Light Quantum Reactor Light Quantum Reactor Enhanced Biometal Leg Enhanced Biometal Leg Centrium Leg Advanced Heat Sink Experimental Heat Sink Experimental Energy Well Experimental Matter Compressor Advanced Kinecellerator Improved Transmission Jammer Reaction Control System Improved Reaction Control System Graphene Brace Transdimensional Reconstructor Helical Railgun Helical Railgun Linear Accelerator Heavy Hardcell Cannon Mini Smartbomb Launcher [Rating: 232] Favorites ----------- Power Light Neutrino Core Engine Light Ion Engine Power Core Light Neutrino Core Reactor Vortex Chain Reactor Propulsion Experimental Myomer Leg Treads Light Treads Leg Experimental Myomer Leg Wheel Wheel Hover Unit Antigrav System Utility Advanced Targeting Computer Device Experimental Sensor Array Storage High-capacity Storage Unit Processor Advanced Targeting Computer Hackware Advanced Hacking Suite Protection Heavy Reactive Plating Artifact Core Physics Calibrator Weapon Heavy Phase Cannon Energy Gun Advanced Beam Rifle Energy Cannon Heavy Phase Cannon Ballistic Gun Flak Gun Ballistic Cannon Heavy Hardcell Cannon Launcher Gamma Bomb Array Impact Weapon Powered Hammer Slashing Weapon Falx Piercing Weapon Heavy Pick Build | -11 -10 -10 -9 -8 -8 -7 -7 -7 -7 -7 -7 -6 -6 -6 -6 -6 -6 -5 -5 -5 -5 -5 -5 -4 -4 -4 -4 -4 -4 -4 -3 -3 -3 -2 -2 -2 -1 ------- Run | Yrd Mat Min Mat Mat Sto Fac Was Fac Low Low Zio Pro Fac Ext Cet Arc Hub Fac Was Fac Upp Upp War Pro Fac Was Fac Upp Upp Zhi Pro Res Tes Res Qua Sec Acc Slots Evolved 18 | . . . 2 2 . 2 . . . . . . 2 . . . . 2 . . . . . . 2 . . . . . . 2 . 2 . . 2 Power 1 | . . . . . . . . . . . . . . . . . . . . . . . . . 1 . . . . . . . . . . . . Propulsion 3 | . . . . 2 . 1 . . . . . . . . . . . 1 . . . . . . . . . . . . . . . . . . -1 Utility 12 | . . . 2 . . 1 . . . . . . 1 . . . . 1 . . . . . . 1 . . . . . . 2 . 1 . . 3 Weapon 2 | . . . . . . . . . . . . . 1 . . . . . . . . . . . . . . . . . . . . 1 . . . Parts Attached 320 | 8 14 3 18 22 5 9 4 2 1 2 2 5 32 19 6 9 1 18 5 15 3 . 16 2 10 . 19 2 . 4 . 9 9 7 4 16 19 Power 43 | 1 2 1 4 3 1 . 2 . . . 1 . 3 1 1 1 . 2 . 1 . . . . 2 . 6 2 . 1 . 1 . . . 2 5 Engine 21 | 1 2 1 4 2 1 . 2 . . . 1 . 1 1 1 1 . . . . . . . . 1 . 2 . . . . . . . . . . Core 7 | . . . . 1 . . . . . . . . 2 . . . . 2 . 1 . . . . . . 1 . . . . . . . . . . Reactor 15 | . . . . . . . . . . . . . . . . . . . . . . . . . 1 . 3 2 . 1 . 1 . . . 2 5 Propulsion 91 | 2 4 1 3 9 2 4 1 . 1 . . 1 12 2 . 5 . 7 1 5 . . 6 2 . . 3 . . 2 . 3 2 1 4 5 3 Treads 3 | . . . . . . . . . . . . . 3 . . . . . . . . . . . . . . . . . . . . . . . . Leg 25 | . . . . . . . . . . . . . . . . . . . . . . . 2 2 . . 2 . . 2 . 3 2 1 4 5 2 Wheel 21 | 2 4 1 3 9 1 . . . . . . . 1 . . . . . . . . . . . . . . . . . . . . . . . . Hover 42 | . . . . . 1 4 1 . 1 . . 1 8 2 . 5 . 7 1 5 . . 4 . . . 1 . . . . . . . . . 1 Flight . | . . . . . . . . . . . . . . . . . . . . . . . . . . . . . . . . . . . . . . Utility 110 | 2 4 1 3 5 1 3 1 1 . . . 1 9 8 3 3 1 8 . 5 2 . 7 . 5 . 10 . . 1 . 5 2 5 . 9 5 Device 48 | 1 1 1 2 1 . . 1 . . . . 1 3 3 2 1 . 3 . 2 2 . 5 . . . 5 . . . . 2 2 1 . 6 3 Storage 12 | 1 3 . . 1 . . . 1 . . . . 2 1 . . . 1 . . . . 1 . . . . . . . . 1 . . . . . Processor 15 | . . . 1 1 1 1 . . . . . . 1 . . . . 1 . . . . . . 1 . 2 . . . . 1 . 3 . . 2 Hackware 17 | . . . . . . 1 . . . . . . 1 2 . 1 1 3 . 3 . . 1 . 3 . . . . . . 1 . . . . . Protection 16 | . . . . 2 . 1 . . . . . . 2 2 1 1 . . . . . . . . 1 . 3 . . 1 . . . 1 . 1 . Artifact 2 | . . . . . . . . . . . . . . . . . . . . . . . . . . . . . . . . . . . . 2 . Weapon 76 | 3 4 . 8 5 1 2 . 1 . 2 1 3 8 8 2 . . 1 4 4 1 . 3 . 3 . . . . . . . 5 1 . . 6 Energy Gun 26 | 3 . . 6 4 . 2 . 1 . 1 . 1 3 1 . . . . . . . . 1 . . . . . . . . . . 1 . . 2 Energy Cannon 14 | . . . 2 1 1 . . . . . . . 2 1 . . . 1 1 . . . 1 . 1 . . . . . . . 3 . . . . Ballistic Gun 19 | . 3 . . . . . . . . . . 2 2 5 2 . . . . 2 . . 1 . . . . . . . . . . . . . 2 Ballistic Cannon 6 | . . . . . . . . . . . . . . . . . . . 2 . . . . . 1 . . . . . . . 1 . . . 2 Launcher 6 | . 1 . . . . . . . . . 1 . . 1 . . . . 1 . 1 . . . . . . . . . . . 1 . . . . Special Weapon . | . . . . . . . . . . . . . . . . . . . . . . . . . . . . . . . . . . . . . . Impact Weapon 3 | . . . . . . . . . . 1 . . . . . . . . . 2 . . . . . . . . . . . . . . . . . Slashing Weapon 1 | . . . . . . . . . . . . . . . . . . . . . . . . . 1 . . . . . . . . . . . . Piercing Weapon 1 | . . . . . . . . . . . . . 1 . . . . . . . . . . . . . . . . . . . . . . . . Special Melee Weapon . | . . . . . . . . . . . . . . . . . . . . . . . . . . . . . . . . . . . . . . Unidentified Prototypes 39 | . . . . 1 1 1 . . . . . . . 1 3 . . 1 1 . 1 1 10 . . . . . . 4 . 2 4 2 2 4 . Corrupted Parts 1 | . . . . . . . . . . . . . . . . . . . . . . . . 1 . . . . . . . . . . . . . System Corruption 2 | . . . . . . . . . . . . . . . . . . . . . . . . 2 . . . . . . . . . . . . . Parts Lost 87 | . 6 . 4 4 . . 3 1 . . . 2 10 . 5 1 4 2 . 1 . . 1 1 . . 3 . . . . 1 . . 1 8 29 Power 14 | . 1 . 1 . . . 1 . . . . . 1 . 1 . . 1 . . . . . . . . 2 . . . . . . . . 2 4 Propulsion 33 | . 2 . 2 4 . . 1 1 . . . 2 4 . 2 1 4 1 . 1 . . . . . . . . . . . . . . . 1 7 Utility 24 | . 1 . . . . . 1 . . . . . 2 . 1 . . . . . . . 1 1 . . 1 . . . . . . . 1 5 10 Weapon 16 | . 2 . 1 . . . . . . . . . 3 . 1 . . . . . . . . . . . . . . . . 1 . . . . 8 Highest Loss Streak 13 | . 4 . 3 1 . . 3 1 . . . 1 6 . 4 1 2 1 . 1 . . 1 1 . . 2 . . . . 1 . . 1 3 13 To Critical Strikes 1 | . . . . . . . . . . . . . . . 1 . . . . . . . . . . . . . . . . . . . . . . Average Backups 15 | 3 8 10 13 14 15 14 13 6 9 10 10 10 12 14 14 14 14 6 19 17 17 17 17 17 17 17 17 17 17 16 17 17 16 16 16 17 15 Power 1 | . 1 2 1 1 1 1 1 . . . . . . 1 1 1 . . 2 1 1 1 . 1 1 1 1 1 1 1 1 1 1 1 1 1 1 Propulsion 2 | 1 4 6 6 6 6 2 1 1 1 1 1 . 1 1 . . . . 3 1 1 . 1 3 3 3 1 1 1 1 1 1 1 . 1 1 1 Utility 7 | . . . 1 3 4 6 7 4 6 6 6 5 6 4 4 5 5 4 9 9 11 12 9 9 7 8 9 9 9 8 8 7 8 9 9 10 7 Weapon 4 | . 2 2 4 4 3 3 2 . 2 3 3 3 4 6 7 7 6 1 4 4 4 4 5 4 5 5 5 6 6 5 6 6 5 4 3 3 3 Tool/Special . | . . . . . . . . . . . . . . . . . . . . . . . . . . . . . . . . . . . . . . Unused Backups 111 | 2 4 1 7 5 7 5 5 1 1 . . 3 11 3 3 5 2 1 3 11 . . 6 . 3 . 2 . . 3 . 1 4 1 1 4 6 Power 10 | . 1 . 2 1 . . . . . . . . . . . 2 1 . . 2 . . . . . . . . . . . . . . . . 1 Propulsion 29 | 2 3 1 4 1 7 . 1 1 . . . . 2 . . . . . 1 . . . . . . . . . . 1 . . . 1 1 2 1 Utility 47 | . . . . . . 1 2 . 1 . . 1 5 3 2 2 1 1 . 8 . . 6 . 1 . 2 . . 2 . 1 2 . . 2 4 Weapon 25 | . . . 1 3 . 4 2 . . . . 2 4 . 1 1 . . 2 1 . . . . 2 . . . . . . . 2 . . . . Tool/Special . | . . . . . . . . . . . . . . . . . . . . . . . . . . . . . . . . . . . . . . Average Slot Usage (%) 92 | . 97 100 95 94 100 98 93 98 93 100 99 96 97 100 93 94 91 77 93 94 94 92 93 98 96 100 86 81 85 80 90 90 89 89 86 81 84 Engine 3 | . 13 14 11 8 9 7 5 7 7 7 7 7 3 . 5 6 5 . . . . . . . 3 5 2 . . . . . . . . . . Core 1 | . . . . . . . . . . . . . 2 5 . . . 3 5 4 5 5 5 5 2 . . . . . . . . . . . . Reactor 2 | . . . . . . . . . . . . . . . . . . . . . . . . . 2 5 6 9 10 10 10 8 4 4 4 3 5 Leg 9 | . . . . . . . . . . . . . . . . . . . . . . . 3 5 5 5 17 25 25 28 30 28 31 29 25 20 19 Wheel 4 | . 27 28 20 31 36 . . . . . . . . . . . . . . . . . . . . . . . . . . . . . . . . Hover 15 | . . . . . . 37 36 36 31 38 38 34 25 33 31 29 31 22 35 31 29 29 28 33 30 30 9 . . . . . . . . . . Device 10 | . 12 14 26 10 8 7 7 11 4 . . 3 7 13 16 16 11 9 4 4 5 5 5 5 4 5 5 7 15 15 15 17 18 16 19 14 18 Storage 5 | . 14 14 11 9 9 7 5 2 7 7 7 7 6 6 6 6 5 . 5 5 5 5 5 5 5 5 5 5 5 5 5 4 4 4 4 4 5 Processor 13 | . . . 4 14 18 15 15 15 15 15 15 15 12 13 13 13 13 12 11 11 11 11 11 11 10 10 10 15 15 15 15 18 18 18 20 19 16 Hackware 7 | . . . . . . 6 7 7 7 7 7 7 9 . . 1 6 15 17 16 17 16 15 15 19 20 12 5 5 5 5 4 4 1 . . . Protection 1 | . . . . 1 . . . . 2 7 7 3 2 4 3 1 1 . . . . . . . . . 3 3 . . . . . 2 . 2 1 Energy Gun 3 | . 7 5 20 15 13 15 12 14 15 13 14 3 2 1 . 4 . . . . . . 3 . . . . . . . . . . . . . . Energy Cannon 3 | . . . . 2 4 . . . . . . . 2 1 . . 4 2 4 5 5 5 5 5 4 5 4 3 3 . 4 3 3 5 6 4 1 Ballistic Gun 4 | . 20 12 . . . . . . . . . 5 11 15 15 13 8 5 5 6 4 5 1 5 1 . . 1 1 . . . . . . . 1 Ballistic Cannon 1 | . . . . . . . . . . . . . . . . . . . . . . . . . 1 . 1 5 5 . 5 4 4 2 1 3 3 Launcher 1 | . . 9 1 . . . . . . . . 5 . . . . . . . . . . 2 5 3 5 2 . . . . . . 3 4 4 2 Peak Build Rating 232 | 7 8 9 18 32 38 59 59 57 51 50 51 57 75 80 81 85 82 95 103 113 112 117 135 134 150 143 159 165 164 161 162 187 195 211 211 220 232 Average Rating 113 | 5 7 8 15 26 35 56 55 55 50 49 49 51 68 73 74 81 72 73 95 105 110 112 126 133 142 143 149 157 162 143 161 180 187 202 207 207 202 On Entrance 96 | . 7 8 9 17 32 38 53 53 51 50 50 50 53 75 74 77 77 37 95 97 111 111 117 134 129 143 143 155 164 162 161 161 187 188 211 202 189 Naked Turns 7 | . . . . . . . . . . . . . . . . . . . . . . . . . . . . . . . . . . . . . 7 Heaviest Build 179 | 13 26 28 39 45 45 43 34 29 29 31 34 35 66 53 63 57 51 62 63 69 68 67 78 69 83 74 129 130 103 105 105 127 122 160 164 179 178 Greatest Support 210 | 20 20 20 26 58 40 40 41 41 41 41 41 41 70 51 49 47 45 64 64 78 76 88 89 85 85 85 200 200 200 200 200 200 193 193 210 210 180 Greatest Overweight (x) 5 | . 2 1 3 1 3 1 . . . . . 1 5 1 1 1 1 . 1 1 . . 1 . . . . . . . . . . . . 1 1 Average Overweight (x) . | . . 1 1 . 1 . . . . . . . . . . . . . . . . . . . . . . . . . . . . . . . . Largest Inventory Capacity 22 | 8 15 15 15 15 15 15 15 10 10 10 10 10 20 15 15 15 15 20 20 20 20 20 20 20 20 20 20 20 20 20 20 20 20 20 20 22 22 Average Capacity 17 | 7 10 15 15 15 15 15 13 6 10 10 10 10 13 15 15 15 14 7 20 20 20 20 20 20 20 20 20 20 20 20 20 20 20 20 20 20 21 Most Carried 22 | 7 10 14 15 15 15 15 15 10 10 10 10 10 20 15 15 15 15 20 20 20 20 20 20 20 20 20 20 20 20 20 20 20 20 20 20 22 22 Average Carried 16 | 3 8 10 14 14 14 14 12 6 9 9 10 9 12 14 14 14 14 6 19 19 19 19 19 20 19 20 19 19 20 19 20 19 19 19 19 20 16 Final Capacity 22 | 8 15 15 15 15 15 15 5 10 10 10 10 10 15 15 15 15 5 20 20 20 20 20 20 20 20 20 20 20 20 20 20 20 20 20 20 22 7 Final Carried 22 | 5 10 14 15 15 15 15 5 10 10 10 10 10 15 15 15 15 5 20 20 20 20 19 20 20 20 20 20 20 20 20 20 20 20 20 18 22 6 Class Distribution -------------------- 18% | Hacker-Mutant 14% | Mutant 12% | Hacker-Gunner 12% | Alien-Gunner 7% | Scavenger-Mutant 6% | Hacker-Skirmisher 4% | Commander-Mutant 3% | Wizard-Mutant 3% | Wizard-Skirmisher 3% | Tank 3% | Scavenger-Skirmisher Dominant Class ---------------- Mutant | -10/Materials Mutant | -10/Mines Scavenger-Mutant | -9/Materials Scavenger-Mutant | -8/Materials Commander-Mutant | -8/Storage Mutant | -7/Factory Mutant | -7/Waste Mutant | -7/Factory Mutant | -7/Lower Caves Mutant | -7/Lower Caves Mutant | -7/Zion Mutant | -6/Proximity Caves Scavenger-Gunner | -6/Factory Scavenger-Tank | -6/Extension Commander-Mutant | -6/Cetus Scavenger-Skirmisher | -6/Archives Scavenger-Mutant | -6/Hub_04(d) Hacker-Mutant | -5/Factory Hacker-Mutant | -5/Waste Hacker-Mutant | -5/Factory Hacker-Mutant | -5/Upper Caves Hacker-Mutant | -5/Upper Caves Hacker-Mutant | -5/Warlord Hacker-Skirmisher | -4/Proximity Caves Wizard-Skirmisher | -4/Factory Wizard-Mutant | -4/Waste Hacker-Mutant | -4/Factory Hacker-Gunner | -4/Upper Caves Hacker-Gunner | -4/Upper Caves Hacker-Mutant | -4/Zhirov Hacker-Gunner | -3/Proximity Caves Hacker-Gunner | -3/Research Hacker-Gunner | -3/Testing Tank | -2/Research Alien-Gunner | -2/Quarantine Alien-Gunner | -2/Section 7 Alien-Gunner | -1/Access Resources | -11 -10 -10 -9 -8 -8 -7 -7 -7 -7 -7 -7 -6 -6 -6 -6 -6 -6 -5 -5 -5 -5 -5 -5 -4 -4 -4 -4 -4 -4 -4 -3 -3 -3 -2 -2 -2 -1 ----------- Run | Yrd Mat Min Mat Mat Sto Fac Was Fac Low Low Zio Pro Fac Ext Cet Arc Hub Fac Was Fac Upp Upp War Pro Fac Was Fac Upp Upp Zhi Pro Res Tes Res Qua Sec Acc Matter Collected 17361 | 280 338 201 370 340 140 130 . 52 84 64 30 310 981 1246 400 315 283 376 122 269 193 58 830 375 526 . 1571 381 . 110 30 587 823 853 337 3435 921 Remotely 525 | . . . . . . . . . . . . . . . . . . . . . . . . . . . 525 . . . . . . . . . . Salvage Created 33645 | 109 616 201 762 912 318 125 . 51 62 131 . 1465 1254 1102 117 305 555 346 317 554 531 56 466 283 519 . 1742 196 . 216 45 731 1060 1094 946 12698 3760 Parts 1374 | 10 45 10 65 41 18 5 . 8 . 5 . 68 71 58 5 23 39 5 1 9 6 . 19 6 41 . 68 6 . 2 4 30 61 44 44 413 144 Haulers Intercepted 11 | . 2 . 3 1 . 1 . . . . . . . . . . . . . 1 1 . . . . . . . . . . 1 . . . . 1 Recyclers Shooed 30 | . 5 . 1 3 1 . . . . . . 2 3 1 . . . 1 . 5 . . . . 1 . 4 . . . . . 1 1 . 1 . Parts Field Recycled . | . . . . . . . . . . . . . . . . . . . . . . . . . . . . . . . . . . . . . . Retrieved Matter . | . . . . . . . . . . . . . . . . . . . . . . . . . . . . . . . . . . . . . . Parts Self-Destructed 92 | . . . . . . . . . 4 4 . 51 . . . . . . . . 14 5 . 6 . . . 5 . 1 2 . . . . . . Prevented 31 | . . . . . . . . . . . . 27 . . . . . . . . . . . . . . . 4 . . . . . . . . . Kills | -11 -10 -10 -9 -8 -8 -7 -7 -7 -7 -7 -7 -6 -6 -6 -6 -6 -6 -5 -5 -5 -5 -5 -5 -4 -4 -4 -4 -4 -4 -4 -3 -3 -3 -2 -2 -2 -1 ------- Run | Yrd Mat Min Mat Mat Sto Fac Was Fac Low Low Zio Pro Fac Ext Cet Arc Hub Fac Was Fac Upp Upp War Pro Fac Was Fac Upp Upp Zhi Pro Res Tes Res Qua Sec Acc Combat Hostiles Destroyed 462 | . 10 11 20 8 5 1 . . . 1 . 16 16 22 1 . 5 2 . . 5 . 14 13 16 . 25 1 . . 5 4 15 12 15 159 60 Melee 4 | . . . . . . . . . . . . . . . . . . . . . . . . . . . 1 . . . . . . . . 1 2 Guns 82 | . 10 1 12 5 4 1 . . . 1 . 3 15 14 1 . 5 1 . . . . . . 2 . 2 . . . . . . . . . 5 Cannons 72 | . . . . 1 1 . . . . . . . . 1 . . . . . . . . 1 . 1 . 10 1 . . 1 1 6 . 4 24 20 AOE 190 | . . 10 8 1 . . . . . . . 13 1 7 . . . . . . 5 . 13 13 13 . 6 . . . 4 2 6 5 4 55 24 Classes Destroyed 26 | 2 6 1 2 2 . . . . . 1 . 2 1 1 . . . . . . . 1 . . . . . . . . . . . 1 . 6 . Worker 40 | . 4 . 2 7 . 2 . 2 . . . . 1 . . . 2 . . 1 . . . . 4 . 2 . . . . 1 4 . . 3 5 Builder 23 | . . . . 1 . . . . . . . . 1 3 . . 1 . . . . . . . . . 2 . . . . 3 1 . . 4 7 Tunneler 8 | 2 1 . 1 . . . . 1 . . . . . 1 . . . . . . . . . . 1 . 1 . . . . . . . . . . Hauler 11 | . 2 . 3 1 . 1 . . . . . . . . . . . . . 1 1 . . . . . . . . . . 1 . . . . 1 Recycler 25 | 1 2 . 1 4 . . . . . . . . 2 . . . . 2 . 3 . . . . 1 . 5 . . . . 2 1 . . . 1 Carrier 1 | . . . . . . . . . . . . . . . . . . . . . . . . . . . . . . . . . . . . 1 . Mechanic 8 | . . 1 . . . . . . . . . . . . . . . . . . . . . . . . . . . . . . . . . 7 . Operator 18 | . 1 . 3 2 . . . . . . . . 1 . . 9 1 . . . . . . . 1 . . . . . . . . . . . . Watcher 21 | . 3 . 4 2 1 . . . . . . . . 1 1 . . 2 . . . . . . 2 . . . . . . 1 . . . 4 . Swarmer 86 | . 8 5 12 . . . . . . . . 7 . 4 . . . . . . . . 3 4 14 . 7 . . . 5 . 3 . 1 7 6 Saboteur 9 | . . . . . . . . . . . . . . . . . . . . . . . . . . . . . . . . . . . . 6 3 Grunt 176 | . 2 6 4 4 2 1 . . . . . 5 5 9 . . . . . . 5 . 10 5 . . 6 . . . . 2 6 7 4 68 25 Brawler 18 | . . . . . . . . . . . . 1 . . . . . . . . . . . 1 . . 2 . . . . . . . . 11 3 Duelist 14 | . . . 1 . . . . . . . . . . . . . . . . . . . . . . . 1 . . . . . . . . 9 3 Protector 9 | . . . . . . . . . . . . 1 . . . . . . . . . . 1 . . . . . . . . . . . . 6 1 Researcher 5 | . . . . . . . . . . . . . . . . . . . . . . 1 . . . . . . . . . . . . . 4 . Sentry 34 | . . . 3 2 3 . . . . . . 4 5 7 . . 2 . . . . . . 1 . . 1 . . . . . . 2 . 4 . Specialist 4 | . . . . . . . . . . . . . . . . . . . . . . . . . . . . . . . . . . . . 4 . Hunter 30 | . . . . 2 . . . . . . . 1 . . . . 3 . . . . . . 2 . . 4 . . . . 2 . 2 2 6 6 Programmer 50 | . . . . . . . . . . . . . 6 1 . . . 2 . . . . . . 2 . 4 1 . . . . 6 . 8 15 5 Heavy 1 | . . . . . . . . . . . . . . . . . . . . . . . . . . . . . . . . . . . . 1 . Q-Series 3 | . . . . . . . . . . . . . . . . . . . . . . . . . . . . . . . . . . . . 2 1 Behemoth 2 | . . . . . . . . . . . . . . 1 . . . . . . . . . . . . . . . . . . . . . 1 . Cetus Guard 1 | . . . . . . . . . . . . . . . 1 . . . . . . . . . . . . . . . . . . . . . . S7 Guard 1 | . . . . . . . . . . . . . . . . . . . . . . . . . . . . . . . . . . . . 1 . Enhanced Grunt 1 | . . . . . . . . . . . . . . . . . 1 . . . . . . . . . . . . . . . . . . . . Tracker 10 | . . . . . . . . . . . . . . . . . . . . . . . . . . . . . . . . . . . . 6 4 Combat Programmer 9 | . . . . . . . . . . . . . . . . . . . . . . . . . . . . . . . . . . . . 6 3 Investigator 1 | . . . . . . . . . . . . . . . . . . . . . . . . . . . . . . . . . . . . 1 . Striker 3 | . . . . . . . . . . . . . . . . . . . . . . . . . . . . . . . . . . 1 . 2 . Executioner 4 | . . . . . . . . . . . . . . . . . . . . . . . . . . . . . . . . . . . . 4 . Packrat 3 | . . . . . . . . . . . . . . . . . . . . . 1 . . . . . . 2 . . . . . . . . . Thug 2 | . . . 1 . . . . . . . . . . . 1 . . . . . . . . . . . . . . . . . . . . . . Savage 2 | . . . . . . . . . . 1 . . . . . . . . . . 1 . . . . . . . . . . . . . . . . Butcher 2 | . . . . . . . . . . 1 . . . 1 . . . . . . . . . . . . . . . . . . . . . . . Guerrilla 1 | . . . . . . . . . . . . . . . . . 1 . . . . . . . . . . . . . . . . . . . . Fireman 1 | . . . . . . . . . . . . 1 . . . . . . . . . . . . . . . . . . . . . . . . . Best Kill Streak 39 | 3 8 5 10 5 2 2 . 1 . 1 . 4 7 4 1 2 2 2 . 1 5 . 3 6 14 . 7 1 . . 5 5 5 5 4 39 18 Combat Bots Only 37 | . 8 4 8 3 1 1 . . . 1 . 4 5 4 1 . 2 2 . . 5 . 3 6 10 . 6 1 . . 5 2 4 5 4 37 14 Max Kills in Single Turn 6 | 1 1 2 3 2 1 1 . 1 . 1 . 2 2 4 1 1 3 1 . 1 2 1 2 2 4 . 4 1 . . 2 2 2 2 2 6 3 Gunslinging 1 | . . . . . . . . . . . . . . . . . 1 . . . . . . . . . . . . . . . . . . . . Exploded 5 | . . 2 3 1 . . . . . . . 2 1 4 . . . . . . 2 . 2 2 4 . 3 . . . 2 1 2 2 1 5 3 Melee 1 | . . . . . . . . . . . . . . . . . . . . . . . . . . . 1 . . . . . . . . 1 1 Uniques/NPCs Destroyed . | . . . . . . . . . . . . . . . . . . . . . . . . . . . . . . . . . . . . . . Combat | -11 -10 -10 -9 -8 -8 -7 -7 -7 -7 -7 -7 -6 -6 -6 -6 -6 -6 -5 -5 -5 -5 -5 -5 -4 -4 -4 -4 -4 -4 -4 -3 -3 -3 -2 -2 -2 -1 -------- Run | Yrd Mat Min Mat Mat Sto Fac Was Fac Low Low Zio Pro Fac Ext Cet Arc Hub Fac Was Fac Upp Upp War Pro Fac Was Fac Upp Upp Zhi Pro Res Tes Res Qua Sec Acc Hostile Shots Fired 2689 | . 98 20 85 39 12 8 2 31 17 15 . 83 211 125 64 9 68 26 . 18 4 2 15 29 20 . 160 39 . . 2 12 42 49 59 717 608 Missed 1106 | . 28 7 24 13 6 2 . 16 11 5 . 49 59 78 23 . 34 11 . 9 2 2 7 13 7 . 62 18 . . . 9 36 35 38 274 228 Deflected 6 | . . . . . . . . . . . . . . . . . . . . . . . . . . . 3 . . . . . . . . 3 . Hits 1583 | . 70 13 61 26 6 6 2 15 6 10 . 34 152 47 41 9 34 15 . 9 2 . 8 16 13 . 98 21 . . 2 3 6 14 21 443 380 Melee 22 | . . . 5 . . . 2 . . . . . . . . . . . . . . . . . . . 2 . . . . . . . . 8 5 Projectile 1561 | . 70 13 56 26 6 6 . 15 6 10 . 34 152 47 41 9 34 15 . 9 2 . 8 16 13 . 96 21 . . 2 3 6 14 21 435 375 AOE 6 | . . . . . . . . . . . . . . . . . . . . . . . 3 . . . 1 . . . . . . . . 2 . Critical Strikes 67 | . . . 1 1 . 1 . . . 2 . 1 2 2 11 1 1 1 . 1 . . . 1 . . 8 1 . . . . . . 2 15 15 Actively Blocked 25 | . . . . . . . . . . . . . . . . . . . . . . . . . . . 2 . . . . . . . . 9 14 Part Disruptions 6 | . . . . . . . . . . . . . 1 . . . . . . . . . . . . . . . . . . . . . . 3 2 Damage Taken 27353 | . 581 191 734 462 101 156 89 236 45 201 . 343 1764 451 839 190 549 304 . 238 47 . 271 271 252 . 1665 300 . . 45 364 187 154 273 7826 8224 Core 3787 | . 174 25 254 71 34 63 26 15 15 22 . 33 242 41 42 51 185 20 . 65 . . 118 23 . . 83 . . . . 93 32 21 40 492 1507 Absorbed by Shields 2913 | . . . . . . . . . . . . . . 76 75 . . . . . . . . . . . . . . . . . 12 80 189 1916 565 Redirected to Core 586 | . . . . . . . . . . . . . . . . . . . . . . . . . . . . . . . . . . . . 213 373 Redirected to Shielding 7 | . . . . . . . . . . . . . 7 . . . . . . . . . . . . . . . . . . . . . . . . Ignored by Resistances 3137 | . . . . . . . . . . . . 6 81 134 213 71 54 . . . . . . . . . 449 159 . . . . 6 76 17 1871 . Regen/Repaired (Parts) 7460 | . 9 . 41 . . . . . . . . . 23 . . . . . . 755 . . 9 . . . . . . . . . 446 . . 4433 1744 Core Remaining (%) 62 | 100 . 20 36 . 80 . . . . . . 75 . . . . 34 . . . . . . 77 . . . . . . 92 . 90 . . 23 . Volleys Fired 1599 | 8 77 12 63 58 29 11 . 4 3 6 . 37 100 72 15 74 17 70 24 88 26 14 27 34 73 . 91 21 5 . 32 36 68 33 39 238 94 Largest 4 | 2 2 2 2 2 2 2 . 2 2 2 . 2 3 3 3 3 3 2 1 3 2 1 1 1 2 . 2 2 1 . 1 2 2 2 2 2 4 Hottest 290 | 80 60 60 121 128 113 126 . 122 122 122 . 105 190 131 98 100 155 126 98 156 123 90 100 90 128 . 150 98 90 . 90 158 200 290 200 290 236 Shots Fired 2186 | 16 147 13 119 108 39 22 . 7 6 12 . 53 183 147 38 90 31 79 24 94 28 14 27 34 82 . 118 23 6 . 33 42 85 37 41 241 147 Gun 984 | 16 142 2 112 94 24 22 . 7 6 12 . 33 130 120 33 90 25 26 . 4 2 . . . 9 . 27 2 . . . . . . . . 46 Cannon 858 | . . . . 14 15 . . . . . . . 53 16 . . 6 53 24 90 22 14 7 11 64 . 73 21 6 . 29 35 76 24 31 106 68 Launcher 344 | . 5 11 7 . . . . . . . . 20 . 11 5 . . . . . 4 . 20 23 9 . 18 . . . 4 7 9 13 10 135 33 Special . | . . . . . . . . . . . . . . . . . . . . . . . . . . . . . . . . . . . . . . Kinetic 728 | . 128 1 . . . . . . . . . 31 99 115 33 24 25 26 . 4 2 . . . 16 . 72 4 1 . 3 9 28 1 2 22 82 Thermal 1043 | 14 14 1 112 85 11 22 . 7 6 12 . 2 83 7 . 66 6 53 24 90 22 14 6 11 57 . 28 19 5 . 26 26 48 23 29 84 30 Explosive 119 | . 5 11 7 . . . . . . . . . . 7 2 . . . . . 4 . 20 23 9 . 5 . . . 4 . 3 . . 6 13 Electromagnetic 295 | 2 . . . 23 28 . . . . . . 20 1 18 3 . . . . . . . . . . . 13 . . . . 7 6 13 10 129 22 Entropic 1 | . . . . . . . . . . . . . . . . . . . . . . . 1 . . . . . . . . . . . . . . Robot Hit Streak 32 | 4 8 6 16 20 12 12 . 5 2 3 . 15 32 14 10 8 9 17 23 6 6 5 3 . 8 . 18 5 . . 6 15 8 11 13 17 10 Robot Miss Streak 7 | 2 4 1 5 6 3 1 . 1 1 1 . 3 5 5 5 3 1 6 1 1 1 . 1 . 3 . 3 1 . . . 1 5 4 4 7 5 Penetration Max 3 | . . . . . . . . . . . . 3 2 2 2 1 1 . . . . . . . 1 . 1 . . . . . . . . . . Secondary Targets 5 | . 3 . . . . . . . . . . . . 1 . . 1 . . . . . . . . . . . . . . . . . . . . Max Gunslinging Chain 1 | . 1 . . . . . . . . . . . . 1 . . 1 . . . . . . . . . . . . . . . . . . . . Shots Hit Robots 1235 | 10 93 10 88 80 28 17 . 6 4 6 . 37 82 118 27 57 17 40 23 20 16 2 3 . 32 . 80 6 . 3 2 19 28 9 20 162 90 Core Hits 1588 | 4 42 17 70 66 8 5 . 3 1 4 . 47 73 137 28 27 22 30 2 6 16 1 36 33 33 . 70 4 . 1 9 20 37 38 31 516 151 Critical Kills 31 | . . . . . . . . . . . . 6 10 . 1 . 3 1 . . . 1 . . . . . . . . . . 1 . 3 3 2 Critical Parts Destroyed 19 | . 1 . . . . . . . . . . 6 5 . 2 1 2 . . . . . . . . . . . . . . . . . . . 2 Critical Strikes 76 | . 1 . 4 3 1 1 . . 2 . . 12 16 . 6 4 5 1 . . . 1 . . . . 5 . . . . 1 2 . 3 3 5 Burn 14 | . . . 4 3 1 1 . . 2 . . . . . . 3 . . . . . . . . . . . . . . . . . . . . . Meltdown 10 | . . . . . . . . . . . . . . . . . . 1 . . . 1 . . . . . . . . . . 1 . 3 3 1 Destroy 44 | . 1 . . . . . . . . . . 12 16 . 6 1 5 . . . . . . . . . . . . . . . . . . . 3 Blast 7 | . . . . . . . . . . . . . . . . . . . . . . . . . . . 4 . . . . 1 1 . . . 1 Sever 1 | . . . . . . . . . . . . . . . . . . . . . . . . . . . 1 . . . . . . . . . . Melee Attacks 77 | . . . . . . . . . . 1 . . 12 . . . . . . 12 1 . 4 . 14 . 30 . . 3 . . . . . . . Impact 18 | . . . . . . . . . . 1 . . . . . . . . . 12 1 . 4 . . . . . . . . . . . . . . Slashing 47 | . . . . . . . . . . . . . . . . . . . . . . . . . 14 . 30 . . 3 . . . . . . . Piercing 12 | . . . . . . . . . . . . . 12 . . . . . . . . . . . . . . . . . . . . . . . . Sneak Attacks 11 | . . . . . . . . . . . . . 1 . . . . . . 2 . . . . 2 . 6 . . . . . . . . . . Combat Hostiles . | . . . . . . . . . . . . . . . . . . . . . . . . . . . . . . . . . . . . . . Follow-up Attacks . | . . . . . . . . . . . . . . . . . . . . . . . . . . . . . . . . . . . . . . Damage Inflicted 92686 | 109 844 819 1859 1677 573 304 . 120 80 120 . 1889 1775 3567 1050 1509 996 1032 751 747 1129 52 1839 2015 2679 . 5218 211 . 235 670 1562 2294 1778 3004 34990 15189 Guns 13025 | 109 829 20 1281 1110 353 304 . 120 80 120 . 169 1448 2354 583 1509 514 492 . 11 20 . . . 296 . 465 31 . . . . . . . . 807 Cannons 23900 | . . . . 242 220 . . . . . . . 94 230 . . . 540 751 552 492 52 99 . 894 . 2366 180 . . 149 836 1288 69 1722 8255 4869 Explosions 54337 | . 15 799 572 325 . . . . . . . 1720 173 983 467 . 482 . . . 574 . 1740 2015 1253 . 1727 . . . 521 726 1006 1709 1282 26735 9513 Melee 1418 | . . . . . . . . . . . . . 60 . . . . . . 184 43 . . . 236 . 660 . . 235 . . . . . . . Ramming 6 | . . . 6 . . . . . . . . . . . . . . . . . . . . . . . . . . . . . . . . . . Kinetic 13584 | . 740 9 . . . . . . . . . 149 857 2261 583 447 514 492 . 11 20 . . . 641 . 2671 73 . . 149 563 1001 . 217 83 2103 Thermal 40372 | 109 89 11 1281 1283 134 304 . 120 80 120 . 677 685 93 . 1062 . 540 751 552 492 52 99 . 549 . 252 138 . . . 352 287 395 2104 19692 8069 Explosive 13841 | . 15 799 572 . . . . . . . . . 173 881 278 . . . . . 574 . 1740 2015 1253 . 561 . . . 521 . 354 . . 1088 3017 Electromagnetic 23465 | . . . . 394 439 . . . . . . 1063 . 332 189 . 482 . . . . . . . . . 1074 . . . . 647 652 1383 683 14127 2000 Impact 227 | . . . . . . . . . . . . . . . . . . . . 184 43 . . . . . . . . . . . . . . . . Slashing 1131 | . . . . . . . . . . . . . . . . . . . . . . . . . 236 . 660 . . 235 . . . . . . . Piercing 60 | . . . . . . . . . . . . . 60 . . . . . . . . . . . . . . . . . . . . . . . . Highest Corruption 11 | . . . . . . . 5 5 5 5 5 4 8 5 5 5 1 4 4 4 1 1 1 2 2 9 11 11 11 11 11 4 5 . 3 3 . Average Corruption 5 | . . . . . . . 5 5 5 5 5 4 4 5 5 4 1 2 4 3 1 1 1 2 1 7 10 11 11 11 11 4 4 . 2 3 . Corruption Purged 12 | . . . . . . . . . . . . . 3 . . 5 . . . 4 . . . . . . . . . . . . . . . . . Corruption Blocked . | . . . . . . . . . . . . . . . . . . . . . . . . . . . . . . . . . . . . . . Effects 430 | . . . . . . . 3 5 8 9 1 1 37 32 12 18 1 18 7 9 1 5 . . 17 4 76 18 8 7 26 12 32 . 9 54 . Message Errors 95 | . . . . . . . 2 2 4 2 1 . 8 6 3 5 . 4 1 4 . 1 . . 5 1 16 1 . 4 3 . 5 . 1 16 . Matter Fused 87 | . . . . . . . . . 1 2 . . 8 6 3 3 . 4 2 2 1 1 . . 3 . 8 6 4 . 6 5 9 . . 13 . Heat Flow Errors 64 | . . . . . . . . . 1 . . . 5 3 . 3 . 4 2 1 . 1 . . . 1 14 3 2 . 10 3 3 . 4 4 . Energy Discharges 49 | . . . . . . . 1 1 2 3 . . 4 3 2 1 . . 1 . . . . . 4 1 10 2 . 1 2 2 3 . 3 3 . Parts Rejected 11 | . . . . . . . . . . 1 . . . 3 . . . . . . . . . . . . 2 . . . . 1 1 . . 3 . Parts Fused 2 | . . . . . . . . . . . . . . 1 . . . 1 . . . . . . . . . . . . . . . . . . . Data Loss (minor) 66 | . . . . . . . . 1 . . . 1 6 4 2 3 1 3 . . . 1 . . 3 1 13 5 1 . 3 1 7 . 1 9 . Data Loss (major) 20 | . . . . . . . . . . 1 . . 3 4 1 . . 1 1 . . 1 . . 1 . 2 1 . 2 1 . . . . 1 . Misfires 17 | . . . . . . . . . . . . . 3 . 1 1 . 1 . 2 . . . . . . 4 . 1 . 1 . 1 . . 2 . Alerts 6 | . . . . . . . . 1 . . . . . 1 . 1 . . . . . . . . 1 . 1 . . . . . 1 . . . . Weapon Failures 13 | . . . . . . . . . . . . . . 1 . 1 . . . . . . . . . . 6 . . . . . 2 . . 3 . Overload Shots . | . . . . . . . . . . . . . . . . . . . . . . . . . . . . . . . . . . . . . . Overflow Damage 6676 | . . 56 29 134 . . . . . . . 85 45 12 . . 41 7 . 123 98 . . 27 129 . 328 43 . 141 50 61 224 7 1223 2451 1362 Projectiles 3928 | . . . . 11 . . . . . . . . 1 . . . . 7 . 26 56 . . . 49 . 42 43 . . 39 55 214 4 1022 1535 824 Explosions 2316 | . . 56 29 123 . . . . . . . 85 44 12 . . 41 . . . . . . 27 36 . 178 . . . 11 6 10 3 201 916 538 Melee 432 | . . . . . . . . . . . . . . . . . . . . 97 42 . . . 44 . 108 . . 141 . . . . . . . Knockbacks 31 | . . . . . . . . . . . . . . . . . . . . 1 . . . . 1 . 17 . . . . . 6 . 1 . 5 Impact 1 | . . . . . . . . . . . . . . . . . . . . 1 . . . . . . . . . . . . . . . . . Kinetic 30 | . . . . . . . . . . . . . . . . . . . . . . . . . 1 . 17 . . . . . 6 . 1 . 5 Secondary . | . . . . . . . . . . . . . . . . . . . . . . . . . . . . . . . . . . . . . . Self-Inflicted Damage 2330 | . . 53 4 96 . . . . . . . 9 96 35 8 . 94 . . . . . . 53 . . 183 . . . . . 67 44 31 1397 160 Shots 132 | . . 3 1 1 . . . . . . . 3 1 1 1 . 1 . . . . . . 1 . . 5 . . . . . 8 4 3 93 6 Rammed 1 | . . . 1 . . . . . . . . . . . . . . . . . . . . . . . . . . . . . . . . . . Targets Rammed 1 | . . . 1 . . . . . . . . . . . . . . . . . . . . . . . . . . . . . . . . . . Kicked . | . . . . . . . . . . . . . . . . . . . . . . . . . . . . . . . . . . . . . . Crushed . | . . . . . . . . . . . . . . . . . . . . . . . . . . . . . . . . . . . . . . Highest Temperature 535 | 54 40 20 387 249 163 162 . 102 392 341 2 340 504 263 129 159 75 234 270 351 160 194 168 302 235 211 535 268 119 . 259 195 206 123 267 483 166 Average Temperature 75 | 21 17 7 76 70 49 48 . 41 137 131 1 54 101 56 45 53 32 91 34 54 45 47 51 78 43 52 134 97 47 . 107 30 40 43 126 111 39 Received Heat Transfer 3781 | . 24 63 192 108 54 72 . 72 12 108 . 417 432 178 94 54 78 . . 18 9 . . . . . 320 18 . . . . 9 20 4 495 930 Effects 36 | . . . . . . . . . 1 . . . 7 . . . . 1 . . . . . . . . 23 1 . . . . . . . 3 . Shutdowns 9 | . . . . . . . . . . . . . 3 . . . . . . . . . . . . . 6 . . . . . . . . . . Energy Bleed 7 | . . . . . . . . . . . . . 2 . . . . . . . . . . . . . 3 1 . . . . . . . 1 . Interference 13 | . . . . . . . . . . . . . 1 . . . . 1 . . . . . . . . 9 . . . . . . . . 2 . Matter Decay 1 | . . . . . . . . . . . . . 1 . . . . . . . . . . . . . . . . . . . . . . . . Short Circuit 2 | . . . . . . . . . 1 . . . . . . . . . . . . . . . . . 1 . . . . . . . . . . Damage (minor) 2 | . . . . . . . . . . . . . . . . . . . . . . . . . . . 2 . . . . . . . . . . Damage (major) 2 | . . . . . . . . . . . . . . . . . . . . . . . . . . . 2 . . . . . . . . . . Siege Activations . | . . . . . . . . . . . . . . . . . . . . . . . . . . . . . . . . . . . . . . Martial Activations . | . . . . . . . . . . . . . . . . . . . . . . . . . . . . . . . . . . . . . . Shielding Activations 5 | . . . . . . . . . . . . . . . . . . . . . . . . . . . 2 . . . . . . . . 3 . Total Turns 92 | . . . . . . . . . . . . . . . . . . . . . . . . . . . 61 . . . . . . . . 31 . Longest Duration 45 | . . . . . . . . . . . . . . . . . . . . . . . . . . . 45 . . . . . . . . 22 . Robots Disrupted 4 | . . . . . . . . . . . . . . . . . . . . . . . . . . . . . . . . . . 1 . 2 1 Combat Hostiles 4 | . . . . . . . . . . . . . . . . . . . . . . . . . . . . . . . . . . 1 . 2 1 Robots Corrupted 110 | . . . . . . . . . . . . . . . . . . . . 2 . . . . . . 6 . . . . 1 2 7 4 79 9 Combat Hostiles 103 | . . . . . . . . . . . . . . . . . . . . . . . . . . . 6 . . . . 1 2 7 4 75 8 Parts Fried 201 | . . . . 2 6 . . . . . . . . 3 . . . . . 4 . . . . . . 10 . . . . 2 6 12 5 129 22 Impact Corruptions 5 | . . . . . . . . . . . . . . . . . . . . 4 1 . . . . . . . . . . . . . . . . Robots Melted 12 | . . . . 1 . . . . . . . . . . . . . 1 . . . 1 . . . . . . . . . . 1 . 3 4 1 Combat Hostiles 11 | . . . . 1 . . . . . . . . . . . . . 1 . . . . . . . . . . . . . . 1 . 3 4 1 Parts Melted 63 | . . 1 1 1 . 1 . . . 1 . 1 1 . . 2 . 4 . . . 5 . . 1 . . . . . . . 7 . 10 20 7 Heat Transferred 33930 | 250 200 25 3104 2181 370 703 . 222 296 222 . 577 1001 185 . 1850 . 750 1150 592 518 74 111 . 592 . 248 148 . . . 396 296 394 861 11642 4972 Parts Sabotaged 5 | . . . . . . . . . . . . . . . . . . . . . . . . . . . . . . . . . . . . . 5 Parts Stolen . | . . . . . . . . . . . . . . . . . . . . . . . . . . . . . . . . . . . . . . Parts Stripped . | . . . . . . . . . . . . . . . . . . . . . . . . . . . . . . . . . . . . . . Power Chain Reactions 37 | . . . . 1 . . . . . . . 5 . . . . . . . . . . . . . . 2 . . . . 1 1 . . 25 2 Alert | -11 -10 -10 -9 -8 -8 -7 -7 -7 -7 -7 -7 -6 -6 -6 -6 -6 -6 -5 -5 -5 -5 -5 -5 -4 -4 -4 -4 -4 -4 -4 -3 -3 -3 -2 -2 -2 -1 ------- Run | Yrd Mat Min Mat Mat Sto Fac Was Fac Low Low Zio Pro Fac Ext Cet Arc Hub Fac Was Fac Upp Upp War Pro Fac Was Fac Upp Upp Zhi Pro Res Tes Res Qua Sec Acc Maximum Alert Level 5 | . . 1 1 . . . . . . . . . . 3 2 1 2 1 . . . . . . 1 . 2 . . . . . 2 1 2 5 5 Low Security (%) 58 | 100 100 89 23 100 100 100 100 100 . . . . 100 15 . 45 55 90 100 100 . . . . 66 100 69 . . . . 100 11 . 38 . . Level 1 20 | . . 10 76 . . . . . . . . . . 67 47 54 29 9 . . . . . . 33 . 5 . . . . . 49 99 12 9 . Level 2 7 | . . . . . . . . . . . . . . 6 52 . 15 . . . . . . . . . 24 . . . . . 38 . 49 8 . Level 3 1 | . . . . . . . . . . . . . . 11 . . . . . . . . . . . . . . . . . . . . . 6 . Level 4 2 | . . . . . . . . . . . . . . . . . . . . . . . . . . . . . . . . . . . . 24 . Level 5 5 | . . . . . . . . . . . . . . . . . . . . . . . . . . . . . . . . . . . . 11 100 High Security 3 | . . . . . . . . . . . . . . . . . . . . . . . . . . . . . . . . . . . . 39 . Max Security . | . . . . . . . . . . . . . . . . . . . . . . . . . . . . . . . . . . . . . . Sterilizations 1 | . . . . . . . . . . . . . . . . . . . . . . . . . . . . . . . . . . . . 1 . Peak Influence 5156 | 5 140 231 390 199 177 37 24 55 . . . . 178 766 476 292 572 244 4 49 . . . . 295 1 507 . . . . 113 485 384 666 5156 4423 Initial 3093 | . . . 79 118 68 19 9 . . . . . 145 84 412 144 35 244 4 . . . . . 41 1 . . . . . . 42 256 192 363 3093 Average 503 | 1 36 64 259 106 73 8 6 3 . . . . 97 335 405 200 214 43 . 8 . . . . 112 . 161 . . . . 18 353 276 374 2191 3756 Influence Increases 21104 | 15 389 359 825 489 642 148 15 85 150 . . 642 818 1226 369 308 744 383 . 373 110 . 448 290 731 . 1122 45 . 5 110 246 917 532 863 5383 2322 Destroy 0b10 Robot/C 10100 | . 200 220 480 160 260 40 . . . . . 380 320 680 160 80 160 40 . . 100 . 260 260 320 . 500 20 . . 100 80 360 240 300 3180 1200 Destroy 0b10 Robot/NC 870 | 15 60 5 70 85 15 15 . 15 . . . 25 25 30 10 45 25 20 . 25 10 . 5 . 45 . 50 . . 5 . 40 35 . . 120 75 Destroy Leader 1816 | . 40 40 116 56 104 12 . . . . . 30 120 84 . . 62 14 . 2 . . . 30 44 . 100 10 . . 10 24 40 60 50 548 220 Allied During Kill 1188 | . . 5 25 . 162 . . . . . . 87 8 245 170 100 207 . . . . . 78 . . . . . . . . . 45 . . . 56 Successful Hack 783 | . 56 . 24 39 26 6 . 10 . . . . 36 41 . . 12 61 . 63 . . . . 30 . 56 . . . . 50 138 30 33 45 27 Disable Machine 1350 | . . 45 30 75 60 . . . . . . . 60 60 . 75 75 . . 15 . . . . 60 . 75 . . . . . 135 60 105 315 105 Destroy Structure 3092 | . 33 44 50 29 . . . . . . . . 69 56 29 8 113 68 . 148 . . . . 172 . 296 . . . . 52 134 142 285 860 504 Partial Spotted 210 | . . . . 15 . 45 15 15 . . . . 15 30 . . . 15 . 30 . . . . . . . . . . . . 15 . . 15 . Lose Combat Pursuer 1695 | . . . 30 30 15 30 . 45 150 . . 120 165 . . . 90 165 . 90 . . 105 . 60 . 45 15 . . . . 15 . 90 300 135 Influence Decreases 16729 | 15 389 154 750 606 761 165 42 30 145 60 . 410 877 663 744 569 345 868 14 325 158 . 240 432 794 3 638 450 79 5 110 171 535 647 558 874 3103 Entered New Map 4687 | . . . 126 162 95 25 18 . 21 12 . . 87 89 324 217 65 255 10 . 19 . . 208 25 2 . 180 16 . . . 33 201 150 284 2063 Time Decay 9002 | 15 329 154 434 404 416 105 24 30 124 48 . 270 571 494 190 302 160 259 4 299 139 . 160 214 459 1 472 270 63 5 110 171 482 446 398 510 470 Lost Part 792 | . 60 . 40 40 . . . . . . . 20 90 . 50 10 40 12 . . . . 10 10 . . 30 . . . . . . . 10 80 290 Lost Ally 1113 | . . . . . 100 35 . . . . . 120 50 80 180 40 80 17 . 26 . . 70 . 10 . 5 . . . . . 20 . . . 280 Purge Threat 1135 | . . . 150 . 150 . . . . . . . 79 . . . . 325 . . . . . . 300 . 131 . . . . . . . . . . Squads Dispatched 167 | . . 1 5 2 . 3 . 1 . . . 2 15 5 . . 5 7 . 7 . . . . 7 . 15 . . . . 5 5 1 8 47 26 Investigation 26 | . . . 2 . . 1 . . . . . 1 2 4 . . . 3 . 3 . . . . 2 . 3 . . . . 2 1 . 1 . 1 Extermination 39 | . . . . . . 1 . 1 . . . . 8 . . . 1 4 . 3 . . . . 3 . 4 . . . . . 4 . 3 3 4 Reinforcement 35 | . . . 3 1 . 1 . . . . . 1 2 1 . . 4 . . 1 . . . . 2 . 5 . . . . 3 . 1 4 5 1 Assault 40 | . . 1 . 1 . . . . . . . . . . . . . . . . . . . . . . . . . . . . . . . 24 14 Garrison 12 | . . . . . . . . . . . . . 3 . . . . . . . . . . . . . 3 . . . . . . . . 6 . Intercept 15 | . . . . . . . . . . . . . . . . . . . . . . . . . . . . . . . . . . . . 9 6 Searches Triggered . | . . . . . . . . . . . . . . . . . . . . . . . . . . . . . . . . . . . . . . Construction Impeded 9 | . . . 1 . . . . . . . . 1 . 1 . . . . . 1 . . . . 1 . 2 . . . . 1 . . . . 1 Haulers Reinforced 4 | . . . . . . 1 . . . . . . 1 . . . . . . . . . . . . . . . . . . 2 . . . . . Active Scanning Responses . | . . . . . . . . . . . . . . . . . . . . . . . . . . . . . . . . . . . . . . Cargo Convoy Interrupts . | . . . . . . . . . . . . . . . . . . . . . . . . . . . . . . . . . . . . . . Stealth | -11 -10 -10 -9 -8 -8 -7 -7 -7 -7 -7 -7 -6 -6 -6 -6 -6 -6 -5 -5 -5 -5 -5 -5 -4 -4 -4 -4 -4 -4 -4 -3 -3 -3 -2 -2 -2 -1 --------- Run | Yrd Mat Min Mat Mat Sto Fac Was Fac Low Low Zio Pro Fac Ext Cet Arc Hub Fac Was Fac Upp Upp War Pro Fac Was Fac Upp Upp Zhi Pro Res Tes Res Qua Sec Acc Distress Signals 46 | . 1 2 1 2 1 . . 1 . . . . 1 2 2 . 3 . . 2 . . 2 . . . 2 . . . . 7 2 9 2 1 3 Communications Jammed 113 | . . . . . . . . . . . . . . . . . . 2 . . . . . . . . . . . . . . . . . . 111 Distress Signals 113 | . . . . . . . . . . . . . . . . . . 2 . . . . . . . . . . . . . . . . . . 111 Times Spotted 826 | . 18 12 42 17 13 4 6 13 10 7 . 36 34 37 10 37 21 18 . 12 3 1 18 3 16 6 32 1 . . 1 12 23 15 19 214 115 Peak Tracking Total 22 | . 7 4 6 4 3 2 6 10 4 5 . 12 6 4 5 1 11 8 . 7 5 1 11 6 4 6 5 1 . . 5 3 5 4 4 19 22 Tactical Retreats 71 | . . . 2 2 1 1 . 1 6 3 . 5 6 . . . 3 6 . 4 . . 4 . 2 . 2 1 . . . . 1 . 5 11 5 Traps | -11 -10 -10 -9 -8 -8 -7 -7 -7 -7 -7 -7 -6 -6 -6 -6 -6 -6 -5 -5 -5 -5 -5 -5 -4 -4 -4 -4 -4 -4 -4 -3 -3 -3 -2 -2 -2 -1 ------- Run | Yrd Mat Min Mat Mat Sto Fac Was Fac Low Low Zio Pro Fac Ext Cet Arc Hub Fac Was Fac Upp Upp War Pro Fac Was Fac Upp Upp Zhi Pro Res Tes Res Qua Sec Acc Traps Triggered 19 | . . . 1 . . 3 . 2 . . . 1 . 2 . . . 2 . 3 . . . . 1 . 1 . . . . . 1 . . 2 . Indirectly 2 | . . . . . . . . . . . . . . . . . . . . . . . . . . . . . . . . . . . . 2 . Trap Hack Attempts . | . . . . . . . . . . . . . . . . . . . . . . . . . . . . . . . . . . . . . . Triggered . | . . . . . . . . . . . . . . . . . . . . . . . . . . . . . . . . . . . . . . Disarmed . | . . . . . . . . . . . . . . . . . . . . . . . . . . . . . . . . . . . . . . Reprogrammed . | . . . . . . . . . . . . . . . . . . . . . . . . . . . . . . . . . . . . . . Reused . | . . . . . . . . . . . . . . . . . . . . . . . . . . . . . . . . . . . . . . Traps Extracted . | . . . . . . . . . . . . . . . . . . . . . . . . . . . . . . . . . . . . . . Installed . | . . . . . . . . . . . . . . . . . . . . . . . . . . . . . . . . . . . . . . Triggered . | . . . . . . . . . . . . . . . . . . . . . . . . . . . . . . . . . . . . . . Machines | -11 -10 -10 -9 -8 -8 -7 -7 -7 -7 -7 -7 -6 -6 -6 -6 -6 -6 -5 -5 -5 -5 -5 -5 -4 -4 -4 -4 -4 -4 -4 -3 -3 -3 -2 -2 -2 -1 ---------- Run | Yrd Mat Min Mat Mat Sto Fac Was Fac Low Low Zio Pro Fac Ext Cet Arc Hub Fac Was Fac Upp Upp War Pro Fac Was Fac Upp Upp Zhi Pro Res Tes Res Qua Sec Acc Machines Disabled 108 | . . 3 2 5 4 . . . . . . 1 4 7 . 5 5 . . 1 . . 1 . 4 . 5 . . . . . 9 5 7 33 7 Max in Single Turn 3 | . . 2 1 3 1 . . . . . . 1 1 1 . 1 3 . . 1 . . 1 . 1 . 2 . . . . . 2 3 1 2 2 Garrison Access 8 | . . . . . 1 1 . . . . . . . . . . . . . 1 . . . . 2 . 2 . . . . . 1 . . . . Network Hub 1 | . . . . . . . . . . . . . . . . . 1 . . . . . . . . . . . . . . . . . . . . Machines Repaired . | . . . . . . . . . . . . . . . . . . . . . . . . . . . . . . . . . . . . . . Machines Dismantled . | . . . . . . . . . . . . . . . . . . . . . . . . . . . . . . . . . . . . . . Machines Sabotaged . | . . . . . . . . . . . . . . . . . . . . . . . . . . . . . . . . . . . . . . Overloaded Fab Kills . | . . . . . . . . . . . . . . . . . . . . . . . . . . . . . . . . . . . . . . Hacking | -11 -10 -10 -9 -8 -8 -7 -7 -7 -7 -7 -7 -6 -6 -6 -6 -6 -6 -5 -5 -5 -5 -5 -5 -4 -4 -4 -4 -4 -4 -4 -3 -3 -3 -2 -2 -2 -1 --------- Run | Yrd Mat Min Mat Mat Sto Fac Was Fac Low Low Zio Pro Fac Ext Cet Arc Hub Fac Was Fac Upp Upp War Pro Fac Was Fac Upp Upp Zhi Pro Res Tes Res Qua Sec Acc Machines Accessed 211 | . 11 . 9 6 7 9 . 4 . 1 . 2 21 17 2 . 5 18 . 26 1 1 8 . 13 . 15 . . 4 . 5 12 3 4 5 2 Terminals 126 | . 8 . 7 4 5 3 . 1 . . . 1 13 15 2 . 5 12 . 12 . 1 . . 7 . 6 . . . . 4 8 3 3 5 1 Fabricators 13 | . . . . . . 1 . 1 . . . . 1 . . . . 2 . 2 . . . . 2 . 2 . . . . 1 . . . . 1 Repair Stations 12 | . 1 . 1 1 . . . . . . . . 2 1 . . . . . 3 . . . . . . 1 . . . . . 1 . 1 . . Recycling Units 23 | . 2 . . . 1 3 . 1 . . . 1 3 1 . . . 2 . 5 . . . . 2 . 2 . . . . . . . . . . Scanalyzers 13 | . . . 1 1 . 1 . 1 . . . . 1 . . . . 1 . 3 . . . . . . 2 . . . . . 2 . . . . Garrison Access 10 | . . . . . 1 1 . . . . . . 1 . . . . 1 . 1 . . . . 2 . 2 . . . . . 1 . . . . Total Hacks 646 | . 29 . 23 18 22 25 . 6 . 1 . 6 45 38 4 . 14 72 . 97 1 1 11 . 47 . 62 . . 17 . 22 43 9 14 15 4 Successful 372 | . 16 . 13 11 12 17 . 3 . 1 . 1 19 13 1 . 6 46 . 72 1 1 11 . 37 . 40 . . 17 . 8 18 2 2 3 1 Failed 270 | . 13 . 10 7 10 8 . 3 . . . 5 26 25 3 . 8 25 . 24 . . . . 9 . 21 . . . . 14 25 7 12 12 3 Catastrophic 47 | . 2 . 2 . 3 . . . . . . 1 4 2 2 . 2 4 . . . . . . 1 . 2 . . . . 3 7 3 4 3 2 Database Lockouts 4 | . . . . . . . . . . . . . . . . . . 1 . 1 . . . . 1 . 1 . . . . . . . . . . Manual 296 | . 23 . 10 8 13 11 . . . . . . 19 7 1 . 10 51 . 38 . . . . 26 . 40 . . . . 8 22 5 3 1 . Terminals 449 | . 25 . 18 13 18 14 . 2 . . . 3 30 35 4 . 14 55 . 53 . 1 . . 37 . 42 . . . . 16 31 9 11 15 3 Fabricators 46 | . . . . . . 3 . 1 . . . . 2 . . . . 10 . 11 . . . . 5 . 7 . . . . 6 . . . . 1 Repair Stations 42 | . 2 . 4 3 . . . . . . . . 5 1 . . . . . 13 . . . . . . 4 . . . . . 7 . 3 . . Recycling Units 33 | . 2 . . . 1 5 . 1 . . . 3 6 2 . . . 2 . 6 . . . . 2 . 3 . . . . . . . . . . Scanalyzers 28 | . . . 1 2 . 2 . 2 . . . . 1 . . . . 1 . 12 . . . . . . 3 . . . . . 4 . . . . Garrison Access 18 | . . . . . 3 1 . . . . . . 1 . . . . 4 . 2 . . . . 3 . 3 . . . . . 1 . . . . Terminal Hacks 183 | . 6 . 5 3 7 5 . . . 1 . 1 11 9 1 . 5 20 . 21 1 1 11 . 22 . 19 . . 17 . 3 7 2 1 3 1 Record 17 | . . . . . . . . . . . . . . . 1 . . . . . . 1 9 . . . . . . 5 . . . . 1 . . Part Schematic 14 | . 1 . 1 1 . . . . . . . . 1 . . . . 1 . 2 . . . . 2 . 1 . . 4 . . . . . . . Robot Analysis 6 | . . . . 1 . . . . . . . . . . . . . . . . . . . . 1 . . . . 4 . . . . . . . Prototype ID Bank 9 | . 1 . . . . 1 . . . . . . . . . . . 1 . . . . . . . . 1 . . 4 . . . . . 1 . Open Door 14 | . . . . . . . . . . 1 . 1 1 7 . . . . . . 1 . 2 . . . . . . . . . . . . 1 . Level Access Points 1 | . . . . . . . . . . . . . . . . . 1 . . . . . . . . . . . . . . . . . . . . Branch Access Points 9 | . . . . . . 1 . . . . . . 1 . . . . 1 . 2 . . . . 1 . 1 . . . . 1 . . . . 1 Terminal Index 8 | . 1 . . . 1 1 . . . . . . 1 . . . . 1 . 1 . . . . . . 1 . . . . . . 1 . . . Fabricator Index 1 | . . . . . . . . . . . . . . . . . . . . . . . . . . . 1 . . . . . . . . . . Repair Station Index 3 | . . . . . . . . . . . . . 1 . . . . . . 1 . . . . . . 1 . . . . . . . . . . Scanalyzer Index 2 | . . . . . . . . . . . . . . . . . . . . 1 . . . . . . 1 . . . . . . . . . . Alert Level 3 | . . . . . . . . . . . . . 1 . . . . 1 . . . . . . 1 . . . . . . . . . . . . Unreport Threat 10 | . . . 1 . 1 . . . . . . . 1 . . . . 3 . . . . . . 2 . 2 . . . . . . . . . . Locate Traps 31 | . 2 . 1 . 3 2 . . . . . . 2 1 . . 1 4 . 5 . . . . 5 . 1 . . . . 1 2 . . 1 . Extermination Status 1 | . . . . . . . . . . . . . . . . . . . . . . . . . 1 . . . . . . . . . . . . Recall Investigation 1 | . . . . . . . . . . . . . . . . . . . . . . . . . . . 1 . . . . . . . . . . Recall Extermination 10 | . . . . . . . . . . . . . 1 . . . . 2 . 2 . . . . 2 . 2 . . . . . 1 . . . . Registered Components 6 | . 1 . . . . . . . . . . . . . . . . 1 . 1 . . . . 1 . 1 . . . . . . 1 . . . Registered Prototypes 5 | . . . . . . . . . . . . . . . . . . 1 . 1 . . . . 1 . 1 . . . . . 1 . . . . Zone Layout 32 | . . . 2 1 2 . . . . . . . 1 1 . . 3 4 . 5 . . . . 5 . 4 . . . . 1 3 . . . . Fabricator Hacks 28 | . . . . . . 2 . 1 . . . . 1 . . . . 6 . 7 . . . . 3 . 4 . . . . 4 . . . . . Network Status 6 | . . . . . . 1 . 1 . . . . 1 . . . . 1 . 1 . . . . . . 1 . . . . . . . . . . Load Schematic 14 | . . . . . . 1 . . . . . . . . . . . 3 . 4 . . . . 2 . 2 . . . . 2 . . . . . Build 8 | . . . . . . . . . . . . . . . . . . 2 . 2 . . . . 1 . 1 . . . . 2 . . . . . Repair Station Hacks 29 | . 2 . 4 1 . . . . . . . . 3 . . . . . . 12 . . . . . . 3 . . . . . 3 . 1 . . Scan Component 17 | . 1 . 2 1 . . . . . . . . 2 . . . . . . 6 . . . . . . 2 . . . . . 2 . 1 . . Repair 12 | . 1 . 2 . . . . . . . . . 1 . . . . . . 6 . . . . . . 1 . . . . . 1 . . . . Recycling Unit Hacks 20 | . 2 . . . . 3 . 1 . . . . 1 2 . . . 2 . 5 . . . . 2 . 2 . . . . . . . . . . Retrieve Components 20 | . 2 . . . . 3 . 1 . . . . 1 2 . . . 2 . 5 . . . . 2 . 2 . . . . . . . . . . Scanalyzer 24 | . . . 1 2 . 2 . 1 . . . . 1 . . . . 1 . 9 . . . . . . 3 . . . . . 4 . . . . Insert Component 18 | . . . 1 1 . 1 . 1 . . . . 1 . . . . 1 . 6 . . . . . . 2 . . . . . 4 . . . . Analyze 6 | . . . . 1 . 1 . . . . . . . . . . . . . 3 . . . . . . 1 . . . . . . . . . . Garrison Access Hacks 8 | . . . . . 1 1 . . . . . . . . . . . . . 1 . . . . 2 . 2 . . . . . 1 . . . . Seal Access 8 | . . . . . 1 1 . . . . . . . . . . . . . 1 . . . . 2 . 2 . . . . . 1 . . . . Unauthorized Hacks 80 | . 6 . 3 5 4 4 . . . . . . 2 2 . . 1 17 . 17 . . . . 8 . 7 . . . . 1 3 . . . . Terminals 66 | . 6 . 3 5 4 3 . . . . . . 2 2 . . 1 13 . 13 . . . . 6 . 5 . . . . . 3 . . . . Track 11 | . . . . . . . . . . . . . . . . . . 5 . 4 . . . . 2 . . . . . . . . . . . . Assimilate 18 | . 1 . 1 1 . 2 . . . . . . 1 . . . . 4 . 4 . . . . 2 . 2 . . . . . . . . . . Botnet 24 | . 3 . 1 2 2 1 . . . . . . 1 2 . . 1 3 . 3 . . . . 2 . 2 . . . . . 1 . . . . Disrupt 4 | . . . . . 1 . . . . . . . . . . . . . . 1 . . . . . . . . . . . . 2 . . . . Operators 9 | . 2 . 1 2 1 . . . . . . . . . . . . 1 . 1 . . . . . . 1 . . . . . . . . . . Fabricators 14 | . . . . . . 1 . . . . . . . . . . . 4 . 4 . . . . 2 . 2 . . . . 1 . . . . . Prioritize 7 | . . . . . . . . . . . . . . . . . . 2 . 2 . . . . 1 . 1 . . . . 1 . . . . . Recompile 7 | . . . . . . 1 . . . . . . . . . . . 2 . 2 . . . . 1 . 1 . . . . . . . . . . Repair Stations . | . . . . . . . . . . . . . . . . . . . . . . . . . . . . . . . . . . . . . . Recycling Units . | . . . . . . . . . . . . . . . . . . . . . . . . . . . . . . . . . . . . . . Scanalyzers . | . . . . . . . . . . . . . . . . . . . . . . . . . . . . . . . . . . . . . . Garrison Access . | . . . . . . . . . . . . . . . . . . . . . . . . . . . . . . . . . . . . . . Data Cores Recovered 3 | . . . . 1 1 . . . . . . . . . . . 1 . . . . . . . . . . . . . . . . . . . . Used 1 | . . . . . . . . . . . . . . . . . 1 . . . . . . . . . . . . . . . . . . . . Hacking Detections 143 | . 8 . 8 5 7 6 . 2 . . . 1 17 12 2 . 5 10 . 16 . . . . 9 . 9 . . . . 5 9 3 4 4 1 Full Trace Events 13 | . . . 1 . . . . . . . . 1 2 4 . . . 1 . . . . . . 1 . 1 . . . . 1 . . . . 1 Feedback Events . | . . . . . . . . . . . . . . . . . . . . . . . . . . . . . . . . . . . . . . Feedback Blocked . | . . . . . . . . . . . . . . . . . . . . . . . . . . . . . . . . . . . . . . Robot Schematics Acquired 4 | . . . . . . . . . . . . . . . . . . . . . . . . . . . . . . . . . . . 3 1 . Robots Built . | . . . . . . . . . . . . . . . . . . . . . . . . . . . . . . . . . . . . . . Authchips . | . . . . . . . . . . . . . . . . . . . . . . . . . . . . . . . . . . . . . . Time . | . . . . . . . . . . . . . . . . . . . . . . . . . . . . . . . . . . . . . . Total Robot Build Rating . | . . . . . . . . . . . . . . . . . . . . . . . . . . . . . . . . . . . . . . Part Schematics Acquired 22 | . 1 . 1 2 . . . . . . . . 1 . . . . 1 . 2 . . . . 2 . 2 . . 4 . . . . 2 4 . Parts Built 9 | . . . . . . . . . . . . . . . . . . 3 . 2 . . . . 1 . 1 . . . . 2 . . . . . Authchips 5 | . . . . . . . . . . . . . . . . . . 1 . 2 . . . . 1 . . . . . . 1 . . . . . Time 571 | . . . . . . . . . . . . . . . . . . 111 . 129 . . . . 169 . 23 . . . . 139 . . . . . Total Part Build Rating 57 | . . . . . . . . . . . . . . . . . . 20 . 11 . . . . 6 . 5 . . . . 15 . . . . . Parts Repaired 12 | . 1 . 2 . . . . . . . . . 1 . . . . . . 6 . . . . . . 1 . . . . . 1 . . . . Time 666 | . 26 . 58 . . . . . . . . . 136 . . . . . . 362 . . . . . . 68 . . . . . 16 . . . . Parts Recycled . | . . . . . . . . . . . . . . . . . . . . . . . . . . . . . . . . . . . . . . Recycled Matter . | . . . . . . . . . . . . . . . . . . . . . . . . . . . . . . . . . . . . . . Retrieved Matter . | . . . . . . . . . . . . . . . . . . . . . . . . . . . . . . . . . . . . . . Retrieved Components 55 | . 13 . . . . 6 . . . . . . 3 . . . . 3 . 14 . . . . 12 . 4 . . . . . . . . . . Parts Scanalyzed 5 | . . . . 1 . 1 . 1 . . . . . . . . . . . 1 . . . . . . 1 . . . . . . . . . . Part Schematics Acquired 2 | . . . . 1 . . . . . . . . . . . . . . . . . . . . . . 1 . . . . . . . . . . Parts Damaged . | . . . . . . . . . . . . . . . . . . . . . . . . . . . . . . . . . . . . . . Bothacking | -11 -10 -10 -9 -8 -8 -7 -7 -7 -7 -7 -7 -6 -6 -6 -6 -6 -6 -5 -5 -5 -5 -5 -5 -4 -4 -4 -4 -4 -4 -4 -3 -3 -3 -2 -2 -2 -1 ------------ Run | Yrd Mat Min Mat Mat Sto Fac Was Fac Low Low Zio Pro Fac Ext Cet Arc Hub Fac Was Fac Upp Upp War Pro Fac Was Fac Upp Upp Zhi Pro Res Tes Res Qua Sec Acc Used RIF Installer . | . . . . . . . . . . . . . . . . . . . . . . . . . . . . . . . . . . . . . . Robots Hacked . | . . . . . . . . . . . . . . . . . . . . . . . . . . . . . . . . . . . . . . Non-combat . | . . . . . . . . . . . . . . . . . . . . . . . . . . . . . . . . . . . . . . Combat . | . . . . . . . . . . . . . . . . . . . . . . . . . . . . . . . . . . . . . . Robot Hacks Applied . | . . . . . . . . . . . . . . . . . . . . . . . . . . . . . . . . . . . . . . Relay Couplers Released 3 | . . . . . . . . . . . . . 3 . . . . . . . . . . . . . . . . . . . . . . . . Programmers 3 | . . . . . . . . . . . . . 3 . . . . . . . . . . . . . . . . . . . . . . . . Fabnet Peak Effective % . | . . . . . . . . . . . . . . . . . . . . . . . . . . . . . . . . . . . . . . Robots Rewired 28 | . . . . . . . . . . . . 11 . 11 . . . . . . . . 5 . . . . . . . . . 1 . . . . Allies Hacked . | . . . . . . . . . . . . . . . . . . . . . . . . . . . . . . . . . . . . . . Hacks Repelled . | . . . . . . . . . . . . . . . . . . . . . . . . . . . . . . . . . . . . . . Allies | -11 -10 -10 -9 -8 -8 -7 -7 -7 -7 -7 -7 -6 -6 -6 -6 -6 -6 -5 -5 -5 -5 -5 -5 -4 -4 -4 -4 -4 -4 -4 -3 -3 -3 -2 -2 -2 -1 -------- Run | Yrd Mat Min Mat Mat Sto Fac Was Fac Low Low Zio Pro Fac Ext Cet Arc Hub Fac Was Fac Upp Upp War Pro Fac Was Fac Upp Upp Zhi Pro Res Tes Res Qua Sec Acc Total Allies 86 | . 1 1 1 . 10 1 . . . . 2 11 1 23 5 . . 2 . 3 . . 5 . 2 1 2 . . . . . 1 . . . 14 Largest Group 17 | . 1 1 1 . 10 4 . . . . 2 7 2 17 17 9 6 1 . 1 . . 5 . 1 1 1 . . . . . 1 . . . 7 Highest-Rated Group 942 | . 10 31 31 . 173 77 . . . . 51 172 29 652 942 545 451 26 . 26 . . 254 . 45 46 26 . . . . . 118 . . . 102 Highest-Rated Ally 159 | . 10 31 31 . 29 29 . . . . 31 46 20 159 159 96 96 26 . 26 . . 64 . 45 46 26 . . . . . 118 . . . 15 Total Orders 19 | . . . . . . . . . . . . . . . . 6 . . . 2 . . 5 . 6 . . . . . . . . . . . . STAY 10 | . . . . . . . . . . . . . . . . 3 . . . 1 . . 3 . 3 . . . . . . . . . . . . FOLLOW 9 | . . . . . . . . . . . . . . . . 3 . . . 1 . . 2 . 3 . . . . . . . . . . . . Ally Attacks 465 | . . 4 17 . 56 7 . . . . . 66 5 97 71 32 28 . . . . . 24 . . 4 . . . . . . 2 . . . 52 Total Damage 9329 | . . 64 228 . 706 79 . . . . . 884 29 2068 1725 712 874 . . . . . 651 . . 147 . . . . . . 323 . . . 839 Kills 60 | . . . 5 . 11 1 . . . . . 4 . 13 11 5 4 . . . . . 1 . . . . . . . . . 4 . . . 1 Allies Corrupted 5 | . . . . . . . . . . . . 1 . . . . 2 . . . . . . . 1 . . . . . . . 1 . . . . Allies Melted 2 | . . . . . . . . . . . . . . . . . . . . . . 1 1 . . . . . . . . . . . . . . Intel | -11 -10 -10 -9 -8 -8 -7 -7 -7 -7 -7 -7 -6 -6 -6 -6 -6 -6 -5 -5 -5 -5 -5 -5 -4 -4 -4 -4 -4 -4 -4 -3 -3 -3 -2 -2 -2 -1 ------- Run | Yrd Mat Min Mat Mat Sto Fac Was Fac Low Low Zio Pro Fac Ext Cet Arc Hub Fac Was Fac Upp Upp War Pro Fac Was Fac Upp Upp Zhi Pro Res Tes Res Qua Sec Acc Active Infowar (turns) 25837 | 16 478 328 1040 802 970 444 77 297 121 . . . 1230 641 274 346 249 1062 289 1812 643 602 1089 547 1568 68 1733 565 260 244 627 737 1168 1073 949 2299 1189 Optics 5109 | . . . . . . . . . . . . . . . . . . . . . . . . . . . . . . . . . . 672 949 2299 1189 Sensors 22143 | . . . . 489 970 444 77 297 121 . . . 1230 641 274 346 249 1062 289 1806 643 602 1089 547 1568 68 1733 565 260 244 627 737 1168 633 699 1671 994 Seismic 2175 | 16 478 328 1040 313 . . . . . . . . . . . . . . . . . . . . . . . . . . . . . . . . . Jamming 1265 | . . . . . . . . . . . . . . . . . . 249 . 6 . . . . . . . . . . . . . . . 2 1008 ECM 1 | . . . 1 . . . . . . . . . . . . . . . . . . . . . . . . . . . . . . . . . . Robot Analysis Total 6 | . . . . 1 . . . . . . . . . . . . . . . . . . . . 1 . . . . 4 . . . . . . . Derelict Logs Recovered 12 | . . 1 . . . . . . 1 2 1 1 . . . . . . . . 1 1 . 2 . . . 1 1 . . . . . . . . Drone Launches . | . . . . . . . . . . . . . . . . . . . . . . . . . . . . . . . . . . . . . . Drone Recoveries . | . . . . . . . . . . . . . . . . . . . . . . . . . . . . . . . . . . . . . . Exploration | -11 -10 -10 -9 -8 -8 -7 -7 -7 -7 -7 -7 -6 -6 -6 -6 -6 -6 -5 -5 -5 -5 -5 -5 -4 -4 -4 -4 -4 -4 -4 -3 -3 -3 -2 -2 -2 -1 ------------- Run | Yrd Mat Min Mat Mat Sto Fac Was Fac Low Low Zio Pro Fac Ext Cet Arc Hub Fac Was Fac Upp Upp War Pro Fac Was Fac Upp Upp Zhi Pro Res Tes Res Qua Sec Acc Turns Passed 31695 | 89 1004 859 1066 975 1021 472 102 309 328 331 312 589 2118 1305 389 677 332 1113 295 1889 646 603 1181 547 1710 68 2033 588 260 248 627 811 1250 1104 949 2299 1196 Spaces Moved 29629 | 54 848 461 679 768 661 859 154 731 655 699 782 699 2164 1007 213 301 406 1563 193 2101 1059 953 1299 631 1743 84 1613 439 221 196 451 529 924 903 676 1174 736 Core 17 | 2 1 . . . . . . . . . . . . . . . . . . . . . . . . . . . . . . . . . . . 14 Treads 249 | . . . . . . . . . . . . . 249 . . . . . . . . . . . . . . . . . . . . . . . . Legs 6930 | . . . . . . . . . . . . . . . . . . . . . . . . . . . 695 439 221 196 451 529 924 903 676 1174 722 Wheels 3515 | 52 847 461 679 768 661 . . . . . . . 47 . . . . . . . . . . . . . . . . . . . . . . . . Hover 18918 | . . . . . . 859 154 731 655 699 782 699 1868 1007 213 301 406 1563 193 2101 1059 953 1299 631 1743 84 918 . . . . . . . . . . Flight . | . . . . . . . . . . . . . . . . . . . . . . . . . . . . . . . . . . . . . . Fastest Speed 34 | 50 80 95 95 80 80 34 34 36 38 38 38 38 42 42 42 42 42 35 38 38 51 46 46 62 62 62 58 112 112 108 110 95 95 100 104 113 50 Average Speed 70 | 78 83 95 100 89 107 34 34 36 39 38 38 42 64 45 62 84 53 46 73 46 51 50 56 62 62 62 82 112 112 110 110 102 98 102 113 125 112 Slowest Speed 420 | 80 150 95 125 95 135 94 42 40 40 38 38 105 420 96 98 100 104 51 102 107 51 51 139 62 63 62 117 112 112 112 110 110 104 104 124 190 190 Overloaded Moves 31 | . . . . . . . . . . . . . . . . . . . . . . . 31 . . . . . . . . . . . . . . Propulsion Burnouts . | . . . . . . . . . . . . . . . . . . . . . . . . . . . . . . . . . . . . . . Robots Hopped . | . . . . . . . . . . . . . . . . . . . . . . . . . . . . . . . . . . . . . . Potential Cave-ins . | . . . . . . . . . . . . . . . . . . . . . . . . . . . . . . . . . . . . . . Cave-ins Triggered 1 | . . . . . . . . . . . . . . . . . . . . . . . . . . . . . . . . 1 . . . . . Teleports 1 | . . . . . . . . . . . . . . . . . . . . . . . . . . . . . . . . . . . . . 1 Exploration Rate (%) 61 | 3 98 84 65 52 80 18 92 16 73 69 83 55 44 86 68 83 46 47 87 46 90 94 95 83 41 85 37 61 37 61 62 15 79 26 71 62 26 Regions Visited 37 Branch Regions 21 Pre-discovered Areas 6 | . . . . . . . . . . 1 . . . . . . . . . . . . . 2 . . . . . 3 . . . . . . . Known Exits Taken 27 | . . . . 1 1 . . 1 1 1 1 1 1 1 1 1 1 . . 1 1 1 1 1 . . 1 1 1 1 1 1 1 1 1 1 . Unknown Exits Taken 4 | 1 1 1 1 . . . . . . . . . . . . . . . . . . . . . . . . . . . . . . . . . . Scrap Searched 22 | . . . . . . . . . 2 7 3 1 . . . . . . . . 2 2 . 2 . . . 3 . . . . . . . . . Spaces Dug 374 | . . 11 4 . . . . . . 1 . 3 40 12 . . 2 19 . 57 3 5 2 20 29 . 34 10 4 . 13 10 20 11 30 29 5 Terrain Destroyed 2147 | . 36 51 51 25 . . . . . 1 . 6 72 78 42 8 166 38 . 83 45 12 60 170 99 . 182 17 6 . 62 29 58 62 134 360 194 Melee 47 | . . . . . . . . . . 1 . . 10 . . . . . . 8 . . 1 . 9 . 18 . . . . . . . . . . Projectile 515 | . . . . . . . . . . . . . 49 2 2 8 13 38 . 75 8 12 2 11 43 . 55 17 6 . 27 19 42 17 13 37 19 AOE 1580 | . 36 51 51 25 . . . . . . . 6 8 76 40 . 153 . . . 37 . 57 159 47 . 109 . . . 35 10 16 45 121 323 175 Terrain Rammed . | . . . . . . . . . . . . . . . . . . . . . . . . . . . . . . . . . . . . . . Walls Destroyed . | . . . . . . . . . . . . . . . . . . . . . . . . . . . . . . . . . . . . . . Machines Disabled . | . . . . . . . . . . . . . . . . . . . . . . . . . . . . . . . . . . . . . . Actions | -11 -10 -10 -9 -8 -8 -7 -7 -7 -7 -7 -7 -6 -6 -6 -6 -6 -6 -5 -5 -5 -5 -5 -5 -4 -4 -4 -4 -4 -4 -4 -3 -3 -3 -2 -2 -2 -1 --------- Run | Yrd Mat Min Mat Mat Sto Fac Was Fac Low Low Zio Pro Fac Ext Cet Arc Hub Fac Was Fac Upp Upp War Pro Fac Was Fac Upp Upp Zhi Pro Res Tes Res Qua Sec Acc Total 38112 | 81 1025 864 955 950 941 1018 200 764 717 749 796 944 2712 1705 438 652 490 1862 325 2894 1131 1062 1699 744 2255 99 2135 511 228 220 547 746 1157 1042 810 1700 944 Wait 5071 | 3 54 378 143 59 216 107 38 18 56 35 8 123 330 411 180 234 36 173 88 620 37 92 279 78 380 16 270 37 2 . 63 151 94 72 41 116 33 Move 29594 | 53 847 460 678 767 660 859 153 730 654 698 781 698 2163 1006 212 300 405 1563 192 2100 1058 952 1298 630 1743 83 1612 438 220 195 450 528 922 902 675 1173 736 Hop . | . . . . . . . . . . . . . . . . . . . . . . . . . . . . . . . . . . . . . . Pick Up 320 | 7 16 3 18 9 8 14 2 7 1 1 . 10 33 13 6 11 3 23 3 24 2 . 14 . 10 . 14 1 . 4 . 6 8 5 6 28 10 Fast Attach 153 | 7 3 . 5 7 1 1 3 . 1 1 2 . 8 4 3 2 . 11 4 4 . 1 7 . 4 . 17 1 . 5 . 5 9 3 6 18 10 Attach 128 | . 5 . 5 1 1 2 3 1 . . . 1 6 . 3 2 4 3 1 6 . 1 1 . 5 . 14 2 . 1 . 3 1 5 7 18 26 Detach 61 | . . . . . . . . . . . . . . . 2 2 4 1 2 1 . . 2 . 3 . 17 . . 1 . . 2 3 4 13 4 Swap 550 | 1 11 10 21 28 11 11 1 3 1 4 2 5 32 61 11 15 15 12 2 18 5 2 25 2 12 . 42 7 1 4 2 11 35 13 19 69 26 Drop 345 | 2 12 1 21 21 12 13 . 1 1 3 3 10 28 14 6 12 6 6 9 21 2 . 22 . 11 . 28 4 . 7 . 6 16 6 13 23 5 Fire 1599 | 8 77 12 63 58 29 11 . 4 3 6 . 37 100 72 15 74 17 70 24 88 26 14 27 34 73 . 91 21 5 . 32 36 68 33 39 238 94 Melee 77 | . . . . . . . . . . 1 . . 12 . . . . . . 12 1 . 4 . 14 . 30 . . 3 . . . . . . . Ram 1 | . . . 1 . . . . . . . . . . . . . . . . . . . . . . . . . . . . . . . . . . Kick . | . . . . . . . . . . . . . . . . . . . . . . . . . . . . . . . . . . . . . . Crush . | . . . . . . . . . . . . . . . . . . . . . . . . . . . . . . . . . . . . . . Escape Stasis 29 | . . . . . . . . . . . . . . 24 . . . . . . . . . . . . . . . . . . 1 . . 4 . Rewire 184 | . . . . . 3 . . . . . . 60 . 100 . . . . . . . . 20 . . . . . . . . . 1 . . . . Trap . | . . . . . . . . . . . . . . . . . . . . . . . . . . . . . . . . . . . . . . Miscellaneous . | . . . . . . . . . . . . . . . . . . . . . . . . . . . . . . . . . . . . . . Route ------- -11/Scrapyard -10/Materials (discovered 6 exits: *Mat x3 / [*Min x2] / [*Sub]) -10/Mines (discovered 3 exits: *Mat x2 / [*Exi]) -9/Materials (discovered 2 exits: *Mat x2) -8/Materials (discovered 2 exits: *Fac / *Sto) -8/Storage -7/Factory (discovered 3 exits: *Fac / Low x2) -7/Waste -7/Factory (discovered 2 exits: *Low x2) -7/Lower Caves -7/Lower Caves (discovered 2 exits: *Fac / *Zio) -7/Zion -6/Proximity Caves -6/Factory (discovered 5 exits: *Fac / Low x2 / *Ext x2) -6/Extension (discovered 2 exits: *Fac / *Cet) -6/Cetus (discovered 2 exits: *Fac / *Arc) -6/Archives (discovered 3 exits: *Fac / *Hub x2) -6/Hub_04(d) (discovered 4 exits: *Fac x4) -5/Factory (discovered 4 exits: *Fac x2 / *Upp x2) -5/Waste -5/Factory (discovered 4 exits: *Fac x2 / *Upp x2) -5/Upper Caves -5/Upper Caves (discovered 2 exits: *Fac / *War) -5/Warlord -4/Proximity Caves -4/Factory (discovered 5 exits: *Res x3 / Upp x2) -4/Waste -4/Factory (discovered 3 exits: Res / *Upp x2) -4/Upper Caves -4/Upper Caves -4/Zhirov -3/Proximity Caves -3/Research (discovered 3 exits: Arm / *Tes x2) -3/Testing -2/Research -2/Quarantine (discovered 3 exits: *Acc / *Sec / [*Frg]) -2/Section 7 -1/Access (discovered 1 exit: Com) History --------- Turn | Location | Event 23 | -11/Scrapyard | Discovered new exit (range 16) 90 | -11/Scrapyard | Entered Materials 159 | -10/Materials | Discovered new exit (range 15) 262 | -10/Materials | Core integrity fell below 50% 291 | -10/Materials | Destroyed 8 combat bots 293 | -10/Materials | Lost 4 parts (1p2n1w) 316 | -10/Materials | Discovered new exit (range 15) 318 | -10/Materials | Build established: Mutant 408 | -10/Materials | Discovered new exit (range 8) 581 | -10/Materials | Discovered new exit (range 15) 673 | -10/Materials | Discovered new exit (range 8) 921 | -10/Materials | Discovered new exit (range 16) 960 | -10/Materials | Repaired Heat Sink 1094 | -10/Materials | Entered Mines 1135 | -10/Mines | Assembled infested the area 1140 | -10/Mines | Assisted by a Guerilla fighting off Assembled 1727 | -10/Mines | Deemed a non-threat by the Exiles lab entrance 1727 | -10/Mines | Discovered new exit (range 5) 1744 | -10/Mines | Learned Materials terminal intel 1744 | -10/Mines | Discovered new exit (range 6) 1820 | -10/Mines | Discovered new exit (range 10) 1824 | -10/Mines | Met a Derelict testing a Signal Generator 1832 | -10/Mines | Found Signal Generator 1903 | -10/Mines | Found a damaged Exp. Sensor Array with a note attached 1905 | -10/Mines | Found Prototype Device 1953 | -10/Mines | Entered Materials 1953 | -9/Materials | Accompanied by 1 ally 1953 | -9/Materials | Evolved 2 slots: Utility x2 1954 | -9/Materials | Loaded intel: 12 terminal locations 1962 | -9/Materials | Identified Exp. Sensor Array 2196 | -9/Materials | Destroyed 8 combat bots 2263 | -9/Materials | Discovered new exit (range 13) 2380 | -9/Materials | Build established: Scavenger-Mutant 2611 | -9/Materials | Discovered new exit (range 12) 2660 | -9/Materials | Lost 3 parts (1p2n) 2722 | -9/Materials | Repaired Seismic Detector 2755 | -9/Materials | Repaired Cooling System 2812 | -9/Materials | Build established: Mutant 2888 | -9/Materials | Core integrity fell below 50% 3019 | -9/Materials | Entered another Materials area 3019 | -8/Materials | Evolved 2 slots: Propulsion x2 3183 | -8/Materials | Build established: Scavenger-Mutant 3187 | -8/Materials | Discovered new exit (range 11) 3310 | -8/Materials | Discovered new exit (range 5) 3639 | -8/Materials | Found Powered Armor 3964 | -8/Materials | Identified exit to Storage 3994 | -8/Materials | Entered Storage 4206 | -8/Storage | Assisted by bots powering up and referring to "LRC-V3" 4502 | -8/Storage | Build established: Commander-Mutant 4709 | -8/Storage | Discovered new exit (range 9) 4721 | -8/Storage | Identified exit to Factory 5015 | -8/Storage | Entered Factory 5015 | -7/Factory | Accompanied by 4 allies 5015 | -7/Factory | Evolved 2 slots: Propulsion x1, Utility x1 5245 | -7/Factory | Discovered new exit (range 5) 5311 | -7/Factory | Identified exit to Lower Caves 5400 | -7/Factory | Identified exit to Factory 5472 | -7/Factory | Build established: Mutant 5487 | -7/Factory | Sucked down chute 5487 | -7/Factory | Entered Waste 5492 | -7/Waste | Spotted C-40 Crusher 5492 | -7/Waste | Spotted C-40 Crusher 5493 | -7/Waste | Spotted C-40 Crusher 5502 | -7/Waste | EMP discharged 5508 | -7/Waste | Spotted C-40 Crusher 5508 | -7/Waste | Spotted C-40 Crusher 5553 | -7/Waste | Crushed by Compactor (1 part destroyed, 2 dropped) 5562 | -7/Waste | Spotted C-40 Crusher 5569 | -7/Waste | Crushed by Compactor (1 part destroyed, 2 dropped) 5582 | -7/Waste | Discovered new exit (range 11) 5589 | -7/Waste | Identified exit to Factory 5589 | -7/Waste | Entered Factory 5600 | -7/Factory | Lost 3 parts (1p1n1u) 5626 | -7/Factory | Discovered exit to Lower Caves (range 4) 5867 | -7/Factory | Discovered exit to Lower Caves (range 8) 5898 | -7/Factory | Entered Lower Caves 6007 | -7/Lower Caves | Encountered a Warlord checkpoint 6196 | -7/Lower Caves | Discovered new exit (range 12) 6206 | -7/Lower Caves | Identified exit to Lower Caves 6226 | -7/Lower Caves | Entered another Lower Caves area 6247 | -7/Lower Caves | Discovered exit to Factory (range 5) 6269 | -7/Lower Caves | Encountered a Warlord checkpoint 6489 | -7/Lower Caves | Discovered new exit (range 4) 6490 | -7/Lower Caves | Identified exit to Zion 6494 | -7/Lower Caves | Learned location of 1 exit from Lower Caves 6523 | -7/Lower Caves | Attacked by a faux Warlord 6557 | -7/Lower Caves | Entered Zion 6573 | -7/Zion | System corruption cleaned by Quarantine Array 6602 | -7/Zion | Discovered new exit (range 13) 6645 | -7/Zion | Gained Derelict followers 6677 | -7/Zion | Given A8's code to call for help 6700 | -7/Zion | Given the Hacking Drone Bay 6867 | -7/Zion | Identified exit to Proximity Caves 6869 | -7/Zion | Entered Proximity Caves 6963 | -6/Proximity Caves | Spotted B-75 Beast 7049 | -6/Proximity Caves | Spotted B-75 Beast 7050 | -6/Proximity Caves | Entered a huge 0b10 base via the front door 7061 | -6/Proximity Caves | Derelicts attacked a huge 0b10 base 7156 | -6/Proximity Caves | Lost 10 allies 7350 | -6/Proximity Caves | Lost 4 allies 7433 | -6/Proximity Caves | Lost 5 allies 7458 | -6/Proximity Caves | Entered Factory 7458 | -6/Factory | Accompanied by 2 allies 7458 | -6/Factory | Evolved 2 slots: Utility x1, Weapon x1 8086 | -6/Factory | Build established: Scavenger-Gunner 8362 | -6/Factory | Lost 6 parts (1p1n1u3w) 8622 | -6/Factory | Build established: Scavenger-Skirmisher 8649 | -6/Factory | Repaired Broken Exp. Sensor Array? 9422 | -6/Factory | Spotted B-75 Beast 9481 | -6/Factory | Discovered new exit (range 10) 9484 | -6/Factory | Identified exit to Factory 9489 | -6/Factory | Identified exit to Lower Caves 9489 | -6/Factory | Identified exit to Extension 9541 | -6/Factory | Build established: Hacker-Mutant 9576 | -6/Factory | Entered Extension 9748 | -6/Extension | Rescued a captive Derelict 9749 | -6/Extension | Rescued a captive Derelict 9776 | -6/Extension | P-60 Hacker assimilated allied 81-76L(h) 10015 | -6/Extension | Rescued A7 10187 | -6/Extension | Build established: Scavenger-Tank 10417 | -6/Extension | Spotted B-75 Beast 10431 | -6/Extension | Allies destroyed B-75 Beast 10440 | -6/Extension | Spotted B-75 Beast 10460 | -6/Extension | Lost 3 allies 10461 | -6/Extension | Destroyed B-75 Beast 10556 | -6/Extension | Rescued a captive Derelict 10556 | -6/Extension | Rescued a captive Derelict 10584 | -6/Extension | Rescued a captive Derelict 10660 | -6/Extension | Rescued a captive Derelict 10661 | -6/Extension | Rescued a captive Derelict 10667 | -6/Extension | Rescued a captive Derelict 10667 | -6/Extension | Rescued a captive Derelict 10676 | -6/Extension | Rescued a captive Derelict 10677 | -6/Extension | Rescued a captive Derelict 10751 | -6/Extension | Disrupted transfer network 10796 | -6/Extension | Discovered exit to Factory (range 10) 10796 | -6/Extension | Discovered new exit (range 6) 10798 | -6/Extension | Identified exit to Cetus 10881 | -6/Extension | Entered Cetus 10881 | -6/Cetus | Accompanied by 17 allies (A7) 10886 | -6/Cetus | Acquired a Cetus Manufacturing Module code from A7 10901 | -6/Cetus | Spotted Cetus Guard 10901 | -6/Cetus | Spotted Cetus Guard 10902 | -6/Cetus | Spotted Cetus Guard 10903 | -6/Cetus | Spotted Cetus Guard 10921 | -6/Cetus | Allies destroyed Cetus Guard 10921 | -6/Cetus | Allies destroyed Cetus Guard 10922 | -6/Cetus | Allies destroyed Cetus Guard 10924 | -6/Cetus | Destroyed Cetus Guard 10946 | -6/Cetus | Lost 6 allies 10961 | -6/Cetus | Started Cetus Manufacturing Module 10986 | -6/Cetus | Manufactured an Enhanced Grunt 11011 | -6/Cetus | Manufactured an Enhanced Grunt 11036 | -6/Cetus | Manufactured an Enhanced Grunt 11061 | -6/Cetus | Manufactured an Enhanced Grunt 11086 | -6/Cetus | Manufactured an Enhanced Grunt 11110 | -6/Cetus | Discovered new exit (range 15) 11144 | -6/Cetus | Spotted Cetus Guard 11144 | -6/Cetus | Spotted Cetus Guard 11150 | -6/Cetus | Extracted ID and sensor layout for unrecognized location from A7's data core 11157 | -6/Cetus | Allies destroyed Cetus Guard 11159 | -6/Cetus | Spotted Cetus Guard 11162 | -6/Cetus | Allies destroyed Cetus Guard 11166 | -6/Cetus | Found Prototype Device 11166 | -6/Cetus | Identified Exp. Thermal Shield 11168 | -6/Cetus | Spotted Cetus Guard 11183 | -6/Cetus | Allies destroyed Cetus Guard 11185 | -6/Cetus | Allies destroyed Cetus Guard 11191 | -6/Cetus | Discovered exit to Factory (range 15) 11194 | -6/Cetus | Met Revision 17 11209 | -6/Cetus | Lost 4 parts (1p2n1u) 11219 | -6/Cetus | Lost 7 allies 11241 | -6/Cetus | Identified exit to Archives 11270 | -6/Cetus | Entered Archives 11270 | -6/Archives | Accompanied by 9 allies 11349 | -6/Archives | Lost 3 allies 11512 | -6/Archives | Discovered exit to Factory (range 15) 11568 | -6/Archives | Discovered new exit (range 16) 11627 | -6/Archives | Discovered new exit (range 16) 11933 | -6/Archives | Identified exit to Hub_04(d) 11947 | -6/Archives | Entered Hub_04(d) 11947 | -6/Hub_04(d) | Accompanied by 6 allies 11986 | -6/Hub_04(d) | Found Exp. Thermal Shield 12155 | -6/Hub_04(d) | Build established: Scavenger-Mutant 12227 | -6/Hub_04(d) | Network Hub disabled 12249 | -6/Hub_04(d) | Spotted Lightning 12249 | -6/Hub_04(d) | Spotted Lightning 12249 | -6/Hub_04(d) | Spotted Lightning 12262 | -6/Hub_04(d) | Core integrity fell below 50% 12279 | -6/Hub_04(d) | Entered Factory 12279 | -5/Factory | Evolved 2 slots: Propulsion x1, Utility x1 12280 | -5/Factory | Identified exit to Upper Caves 12291 | -5/Factory | Lost 3 allies 12453 | -5/Factory | Central database locked down 12571 | -5/Factory | Build established: Hacker-Mutant 12770 | -5/Factory | Fabricated Imp. Antigrav System (x2) 12968 | -5/Factory | Discovered new exit (range 11) 12973 | -5/Factory | Identified exit to Factory 13058 | -5/Factory | Fabricated Adv. Hacking Suite (x1) 13127 | -5/Factory | Discovered exit to Factory (range 14) 13392 | -5/Factory | Sucked down chute 13392 | -5/Factory | Entered Waste 13392 | -5/Waste | The area was eerily silent 13548 | -5/Waste | Found Unknown Launcher 13548 | -5/Waste | Identified Gamma Bomb Array 13612 | -5/Waste | Discovered new exit (range 16) 13686 | -5/Waste | Identified exit to Factory 13687 | -5/Waste | Entered Factory 13696 | -5/Factory | Discovered exit to Factory (range 6) 13734 | -5/Factory | Discovered exit to Upper Caves (range 4) 14098 | -5/Factory | Fabricated Exp. Targeting Computer (x1) 14150 | -5/Factory | Fabricated Adv. Hacking Suite (x1) 14343 | -5/Factory | Discovered exit to Factory (range 3) 14359 | -5/Factory | Central database locked down 14623 | -5/Factory | Build established: Hacker-Skirmisher 14630 | -5/Factory | Repaired Broken Antigrav Array 14702 | -5/Factory | Repaired Gamma Bomb Array 14773 | -5/Factory | Repaired Cmb. Antigrav System? 14899 | -5/Factory | Found Prototype Launcher 15194 | -5/Factory | Build established: Hacker-Mutant 15217 | -5/Factory | Repaired Exp. Cooling System 15308 | -5/Factory | Identified Mni. Smartbomb Launcher 15381 | -5/Factory | Repaired Lgt. Neutrino Core 15436 | -5/Factory | Repaired Hvy. Hardcell Cannon? 15576 | -5/Factory | Entered Upper Caves 15920 | -5/Upper Caves | Learned Factory interactive machine intel 16001 | -5/Upper Caves | Encountered a Warlord checkpoint 16027 | -5/Upper Caves | Attracted the attention of an 0b10 checkpoint 16133 | -5/Upper Caves | Discovered new exit (range 15) 16140 | -5/Upper Caves | Identified exit to Upper Caves 16222 | -5/Upper Caves | Entered another Upper Caves area 16297 | -5/Upper Caves | Discovered exit to Factory (range 15) 16475 | -5/Upper Caves | Encountered a Warlord checkpoint 16526 | -5/Upper Caves | Found Alien Artifact 16526 | -5/Upper Caves | Identified Core Expander 16526 | -5/Upper Caves | Installed Core Expander, added new Propulsion slot 16769 | -5/Upper Caves | Attracted the attention of an 0b10 checkpoint 16804 | -5/Upper Caves | Learned Factory terminal intel 16822 | -5/Upper Caves | Discovered new exit (range 7) 16825 | -5/Upper Caves | Identified exit to Warlord 16825 | -5/Upper Caves | Entered Warlord 16844 | -5/Warlord | System corruption cleaned by Quarantine Array 17068 | -5/Warlord | Found Prototype Device 17068 | -5/Warlord | Identified Minesniffer Drone Bay 17096 | -5/Warlord | Visited the Vortex Lab 17097 | -5/Warlord | Found Prototype Energy Gun 17097 | -5/Warlord | Identified Vortex Shotgun 17100 | -5/Warlord | Found Prototype Energy Cannon 17100 | -5/Warlord | Identified Vortex Driver 17105 | -5/Warlord | Found Vortex Driver 17115 | -5/Warlord | Warlord's base attacked by MAIN.C 17138 | -5/Warlord | Found Prototype Processor 17140 | -5/Warlord | Found Prototype Hackware 17142 | -5/Warlord | Identified System Mapper 17187 | -5/Warlord | Identified Exp. Core Analyzer 17199 | -5/Warlord | Found Prototype Device 17199 | -5/Warlord | Identified Exp. Focal Shield 17209 | -5/Warlord | Found Prototype Device 17209 | -5/Warlord | Identified Exp. Phase Shifter 17219 | -5/Warlord | Found Prototype Reactor 17277 | -5/Warlord | Met Warlord 17446 | -5/Warlord | Lost 3 allies 17453 | -5/Warlord | Warlord forces counterattacked 17455 | -5/Warlord | Spotted B-86 Titan 17500 | -5/Warlord | Opened side exit 17713 | -5/Warlord | Build established: Hacker-Skirmisher 17778 | -5/Warlord | Spotted B-86 Titan 17790 | -5/Warlord | Warlord base infiltrated, sounded retreat 17816 | -5/Warlord | Spotted Striker 17928 | -5/Warlord | Spotted Striker 17973 | -5/Warlord | Discovered new exit (range 15) 17993 | -5/Warlord | Identified exit to Proximity Caves 18006 | -5/Warlord | Entered Proximity Caves 18062 | -4/Proximity Caves | Learned location of Armory (-3) 18482 | -4/Proximity Caves | Discovered exit to Factory (range 8) 18553 | -4/Proximity Caves | Entered Factory 18553 | -4/Factory | Evolved 2 slots: Power x1, Utility x1 18554 | -4/Factory | Loaded intel: 53 interactive machine locations 18555 | -4/Factory | Loaded intel: 26 terminal locations 18855 | -4/Factory | Build established: Wizard-Skirmisher 18979 | -4/Factory | Destroyed 10 combat bots 19435 | -4/Factory | Central database locked down 19489 | -4/Factory | Discovered new exit (range 6) 19498 | -4/Factory | Identified exit to Research 19682 | -4/Factory | Discovered exit to Research (range 4) 19717 | -4/Factory | Identified exit to Upper Caves 19861 | -4/Factory | Fabricated Prc. Energy Filter (x1) 19999 | -4/Factory | Discovered exit to Research (range 14) 20015 | -4/Factory | Build established: Wizard-Mutant 20263 | -4/Factory | Sucked down chute 20263 | -4/Factory | Entered Waste 20264 | -4/Waste | Met a frightened Derelict 20277 | -4/Waste | Spotted C-40 Crusher 20278 | -4/Waste | EMP discharged 20283 | -4/Waste | Spotted C-40 Crusher 20283 | -4/Waste | Spotted C-40 Crusher 20285 | -4/Waste | Spotted C-40 Crusher 20285 | -4/Waste | Spotted C-40 Crusher 20294 | -4/Waste | Spotted C-40 Crusher 20303 | -4/Waste | 1 allies followed down the chute 20325 | -4/Waste | Discovered new exit (range 11) 20330 | -4/Waste | Identified exit to Factory 20331 | -4/Waste | Entered Factory 20558 | -4/Factory | Identified Vortex Chain Reactor 20727 | -4/Factory | Discovered exit to Research (range 20) 20906 | -4/Factory | Central database locked down 21116 | -4/Factory | Fabricated Hvy. Reactive Plating (x1) 21266 | -4/Factory | System corruption reached 10% 21632 | -4/Factory | Build established: Hacker-Mutant 21780 | -4/Factory | Garrison activated, responded to threat 22199 | -4/Factory | Repaired Broken Hvy. Hardcell Cannon? 22364 | -4/Factory | Entered Upper Caves 22403 | -4/Upper Caves | Spotted B-86 Titan 22506 | -4/Upper Caves | Build established: Hacker-Gunner 22865 | -4/Upper Caves | Found DCF Scrap (10 items) 22933 | -4/Upper Caves | Discovered new exit (range 15) 22946 | -4/Upper Caves | Identified exit to Upper Caves 22947 | -4/Upper Caves | Learned Research terminal intel 22952 | -4/Upper Caves | Entered another Upper Caves area 23186 | -4/Upper Caves | Discovered new exit (range 7) 23192 | -4/Upper Caves | Learned Research trap positions 23211 | -4/Upper Caves | Identified exit to Zhirov 23212 | -4/Upper Caves | Entered Zhirov 23214 | -4/Zhirov | Discovered new exit (range 3) 23234 | -4/Zhirov | Met Zhirov 23258 | -4/Zhirov | Learned location of Quarantine (-2) 23258 | -4/Zhirov | Learned location of Testing (-3) 23258 | -4/Zhirov | Learned location of Command (-1) 23273 | -4/Zhirov | Zhirov requested help retrieving the SGEMP Prototype 23377 | -4/Zhirov | Found Alien Artifact 23377 | -4/Zhirov | Identified Integrated Dissipator 23377 | -4/Zhirov | Installed Integrated Dissipator, increased core heat dissipation (+20) 23401 | -4/Zhirov | Found Alien Artifact 23459 | -4/Zhirov | Identified exit to Proximity Caves 23460 | -4/Zhirov | Entered Proximity Caves 23846 | -3/Proximity Caves | Spotted B-86 Titan 24078 | -3/Proximity Caves | Discovered exit to Research (range 9) 24087 | -3/Proximity Caves | Entered Research 24087 | -3/Research | Evolved 2 slots: Utility x2 24088 | -3/Research | Loaded intel: 103 trap records 24089 | -3/Research | Loaded intel: 24 terminal locations 24287 | -3/Research | Revision forces began assault on 0b10 24341 | -3/Research | Met up with Revision 17++ 24355 | -3/Research | Crushed by falling debris 24527 | -3/Research | Identified exit to Armory 24527 | -3/Research | Identified exit to Testing 24676 | -3/Research | Fabricated Prc. Energy Filter? 24739 | -3/Research | Fabricated Vortex Chain Reactor? 24787 | -3/Research | Research terminal network offline 24898 | -3/Research | Entered Testing 24943 | -3/Testing | Identified Transdimensional Reconstructor 24963 | -3/Testing | Rewired PD-V42MUMZXKY 25004 | -3/Testing | Found Prototype Energy Cannon 25004 | -3/Testing | Identified Hpw. Disruptor Cannon 25060 | -3/Testing | Found Prototype Launcher 25060 | -3/Testing | Identified Adv. Micro-nuke Launcher 25149 | -3/Testing | Repaired Hvy. Reactive Plating 25206 | -3/Testing | Found Prototype Energy Cannon 25206 | -3/Testing | Identified Disintegrator 25467 | -3/Testing | Found Prototype Energy Cannon 25900 | -3/Testing | Identified Imp. Potential Cannon 25969 | -3/Testing | Found Prototype Device 25992 | -3/Testing | Identified Exp. EM Disruption Field 26141 | -3/Testing | Discovered new exit (range 8) 26147 | -3/Testing | Identified exit to Research 26148 | -3/Testing | Entered Research 26148 | -2/Research | Warlord forces began assault on 0b10 26148 | -2/Research | Evolved 2 slots: Utility x1, Weapon x1 26258 | -2/Research | Research machine network offline 26538 | -2/Research | Borebot progress halted 26595 | -2/Research | Borebot progress halted 26653 | -2/Research | Borebot progress halted 26766 | -2/Research | Discovered new exit (range 14) 26860 | -2/Research | Found Prototype Device 26860 | -2/Research | Identified Adv. Kinecellerator 26960 | -2/Research | Identified exit to Quarantine 26984 | -2/Research | Build established: Tank 27120 | -2/Research | Spotted Striker 27121 | -2/Research | Destroyed Striker 27252 | -2/Research | Entered Quarantine 27378 | -2/Quarantine | Cryocooling Duct disabled 27393 | -2/Quarantine | Ambient heat levels rising (+20) 27393 | -2/Quarantine | Non-combat units ordered to evacuate 27394 | -2/Quarantine | Spotted Alpha 7 27420 | -2/Quarantine | Found Alien Artifact 27451 | -2/Quarantine | Build established: Gunner 27657 | -2/Quarantine | Found Alien Artifact 27657 | -2/Quarantine | Identified Dimensional Node Initializer 27657 | -2/Quarantine | Initialized slip node 27719 | -2/Quarantine | Found Alien Artifact 27719 | -2/Quarantine | Identified Core Reset Matrix 27719 | -2/Quarantine | Identified Subatomic Replicator 27719 | -2/Quarantine | Used Core Reset Matrix 27723 | -2/Quarantine | Detected hypermatrix surge 27723 | -2/Quarantine | Sensed 9 artifacts in vicinity 27825 | -2/Quarantine | Discovered new exit (range 14) 27838 | -2/Quarantine | Identified exit to Access 27916 | -2/Quarantine | Found Phase Redirector 28048 | -2/Quarantine | Build established: Alien-Gunner 28066 | -2/Quarantine | Used Subatomic Replicator to replicate Prc. Energy Filter 28116 | -2/Quarantine | Spotted Fortress 28194 | -2/Quarantine | Discovered new exit (range 5) 28194 | -2/Quarantine | Discovered new exit (range 6) 28199 | -2/Quarantine | Identified exit to Section 7 28201 | -2/Quarantine | Entered Section 7 28202 | -2/Section 7 | Detected hypermatrix surge 28202 | -2/Section 7 | Sensed 22 artifacts in vicinity 28239 | -2/Section 7 | Garrison activated, responded to threat 28256 | -2/Section 7 | Spotted S7 Guard 28271 | -2/Section 7 | Found Core Membrane 28271 | -2/Section 7 | Installed Core Membrane, gained immunity to corruption 28420 | -2/Section 7 | Found Integrated Dissipator 28420 | -2/Section 7 | Installed Integrated Dissipator, increased core heat dissipation (+20) 28616 | -2/Section 7 | Scanned by Researcher 28676 | -2/Section 7 | Destroyed 8 combat bots 28710 | -2/Section 7 | Found Integrated Reactor 28710 | -2/Section 7 | Installed Integrated Reactor, increased core energy generation (+10) 28783 | -2/Section 7 | Spotted S7 Guard 28804 | -2/Section 7 | Intercept squad dispatched 28810 | -2/Section 7 | Spotted Tracker 28810 | -2/Section 7 | Spotted Tracker 28814 | -2/Section 7 | Destroyed Tracker 28814 | -2/Section 7 | Destroyed Tracker 28820 | -2/Section 7 | Spotted Combat Programmer 28821 | -2/Section 7 | Spotted Combat Programmer 28827 | -2/Section 7 | Destroyed Combat Programmer 28830 | -2/Section 7 | Destroyed Combat Programmer 28862 | -2/Section 7 | Destroyed 7 combat bots 28944 | -2/Section 7 | Discovered exit to Access (range 17) 28949 | -2/Section 7 | Spotted S7 Guard 28974 | -2/Section 7 | Destroyed S7 Guard 29032 | -2/Section 7 | Found Core Physics Calibrator 29060 | -2/Section 7 | Spotted S7 Guard 29141 | -2/Section 7 | Spotted B-90 Cyclops 29201 | -2/Section 7 | First assault squad dispatched 29267 | -2/Section 7 | Found Integrated Reactor 29267 | -2/Section 7 | Installed Integrated Reactor, increased core energy generation (+10) 29292 | -2/Section 7 | Found Integrated Mediator 29292 | -2/Section 7 | Installed Integrated Mediator, increased core attachment efficiency 29308 | -2/Section 7 | Intercept squad dispatched 29314 | -2/Section 7 | Spotted Tracker 29319 | -2/Section 7 | Spotted Tracker 29324 | -2/Section 7 | Spotted Combat Programmer 29325 | -2/Section 7 | Destroyed Tracker 29325 | -2/Section 7 | Destroyed Combat Programmer 29329 | -2/Section 7 | Destroyed Tracker 29332 | -2/Section 7 | Garrison activated, responded to threat 29333 | -2/Section 7 | Spotted Combat Programmer 29342 | -2/Section 7 | Destroyed Combat Programmer 29370 | -2/Section 7 | Destroyed 7 combat bots 29437 | -2/Section 7 | Spotted Executioner 29438 | -2/Section 7 | Spotted Executioner 29480 | -2/Section 7 | Spotted B-99 Colossus 29587 | -2/Section 7 | High security lockdown imminent 29634 | -2/Section 7 | Destroyed B-99 Colossus 29646 | -2/Section 7 | Found Integrity Redistributor 29646 | -2/Section 7 | Used Integrity Redistributor, redistributed integrity from core (-339) 29650 | -2/Section 7 | Found Integrity Redistributor 29667 | -2/Section 7 | High security lockdown engaged 29742 | -2/Section 7 | Found LRC Storage 29742 | -2/Section 7 | Installed LRC Storage, increased inventory capacity (+2) 29745 | -2/Section 7 | Destroyed 11 combat bots 29755 | -2/Section 7 | Found LRC Armor 29755 | -2/Section 7 | Installed LRC Armor, increased core integrity (+250) 29871 | -2/Section 7 | Found Integrity Redistributor 29882 | -2/Section 7 | Intercept squad dispatched 29899 | -2/Section 7 | Spotted Tracker 29900 | -2/Section 7 | Spotted Tracker 29907 | -2/Section 7 | Destroyed Tracker 29913 | -2/Section 7 | Destroyed Tracker 29930 | -2/Section 7 | Spotted Combat Programmer 29933 | -2/Section 7 | Destroyed Combat Programmer 29934 | -2/Section 7 | Spotted Combat Programmer 29935 | -2/Section 7 | Destroyed Combat Programmer 29976 | -2/Section 7 | Destroyed 14 combat bots 29986 | -2/Section 7 | Destroyed Investigator 30050 | -2/Section 7 | Destroyed 32 combat bots 30110 | -2/Section 7 | Destroyed Executioner 30112 | -2/Section 7 | Destroyed Executioner 30124 | -2/Section 7 | Found Corrupted Prototype Device 30124 | -2/Section 7 | Identified Adv. Kinecellerator 30165 | -2/Section 7 | Spotted Striker 30175 | -2/Section 7 | Destroyed Striker 30176 | -2/Section 7 | Spotted Executioner 30209 | -2/Section 7 | Sterilization system engaged 30209 | -2/Section 7 | Non-combat units ordered to evacuate 30217 | -2/Section 7 | Spotted Striker 30225 | -2/Section 7 | Used Integrity Redistributor, redistributed integrity from core (-409) 30226 | -2/Section 7 | Core integrity fell below 50% 30232 | -2/Section 7 | Destroyed Striker 30232 | -2/Section 7 | Spotted Executioner 30256 | -2/Section 7 | Destroyed Executioner 30285 | -2/Section 7 | Destroyed 37 combat bots 30288 | -2/Section 7 | Lost 3 parts (3u) 30309 | -2/Section 7 | Combat units ordered to evacuate 30339 | -2/Section 7 | Destroyed Executioner 30369 | -2/Section 7 | Found Corrupted Adv. Kinecellerator 30500 | -2/Section 7 | Entered Access 30500 | -1/Access | Evolved 2 slots (calibrated): -Propulsion x1, Utility x3 30750 | -1/Access | First assault squad dispatched 30930 | -1/Access | Intercept squad dispatched 30941 | -1/Access | Destroyed 10 combat bots 30948 | -1/Access | Spotted Tracker 30950 | -1/Access | Spotted Tracker 30953 | -1/Access | Destroyed Tracker 30953 | -1/Access | Destroyed Tracker 30975 | -1/Access | Spotted Combat Programmer 30982 | -1/Access | Used Integrity Redistributor, redistributed integrity from core (-297) 30985 | -1/Access | Destroyed Combat Programmer 30998 | -1/Access | Spotted Combat Programmer 31004 | -1/Access | Destroyed Combat Programmer 31035 | -1/Access | Destroyed 9 combat bots 31195 | -1/Access | Core integrity fell below 50% 31201 | -1/Access | Warped through subspace 31211 | -1/Access | Destroyed 14 combat bots 31265 | -1/Access | Lost 13 parts (3p2n5u3w) 31392 | -1/Access | Spotted B-99 Colossus 31427 | -1/Access | Intercept squad dispatched 31453 | -1/Access | Spotted Tracker 31454 | -1/Access | Spotted Tracker 31463 | -1/Access | Emitted hypermatrix ping 31463 | -1/Access | Spotted Combat Programmer 31466 | -1/Access | Destroyed Tracker 31468 | -1/Access | Assembled emerged from beneath the floor 31475 | -1/Access | Allies destroyed Combat Programmer 31482 | -1/Access | Destroyed Tracker 31487 | -1/Access | Spotted Combat Programmer 31488 | -1/Access | Destroyed Combat Programmer 31502 | -1/Access | Lost 4 parts (1p2n1w) 31526 | -1/Access | Lost 8 allies 31563 | -1/Access | Destroyed 7 combat bots 31567 | -1/Access | Identified exit to Command 31571 | -1/Access | Lost 3 parts (1n1u1w) 31642 | -1/Access | Assembled emerged from beneath the floor 31683 | -1/Access | Lost 6 allies 31684 | -1/Access | Core integrity fell below 20% 31689 | -1/Access | Released all parts (15) 31696 | -1/Access | Destroyed by S-43 Plague with Heavy Machine Gun Last Messages --------------- 31689_ Released Mic. Antimatter Reactor. 31689_ Released Adv. Target Analyzer. 31689_ Released Exp. Sensor Array. 31689_ Released Graphene Brace. 31689_ Released Imp. Transmission Jammer. 31689_ Released Core Physics Calibrator. 31689_ Released Exp. Core Analyzer. 31689_ Released Hcp. Storage Unit. 31689_ Released Adv. Targeting Computer. 31689_ Released Exp. Optical Array. 31689_ Released Centrium Leg. 31689_ Released Exp. Energy Well. 31689_ Released Adv. Signal Interpreter. 31689_ Released Prc. Matter Filter. 31689_ Released Mic. Antimatter Reactor. 31689_ Mic. Antimatter Reactor crushed and broken. 31690_ Acquired 116 matter. 31691_ Penetrated by Slug. 31691_ Slug penetrates Wall. 31691_ E-15 Imp destroyed. Map ----- +----------------------------------------------------+ | ?????????????????????????????????????????????????? | | ?????????????????????????????????????????????????? | | ?????????????????????????????????????????????????? | | ?????????????????????????????????????????????????? | | ?????????????????????????????????????????????????? | | ?????????????????????????????????????????????????? | | ?????????????????????????????????????????????????? | | ?????????????????????????????????????????????????? | | ?????????????????????????????????????????????????? | | ?????????????????????????????????????????????????? | | ?????????????????????????????????????????????????? | | ?????????????????????????????????????????????????? | | ??????#+##+#######???????????????????????????????? | | ??????# #/==**#######+#######?????????????????? | | ??????# #%!]**## #?????????????????? | | ??????# #%[[%!## #?????????????????? | | ??????# #%= =!## " #?????????????????? | | ??????# "!!%!#### """" #?????????????????? | | ??????# %%"%=!!=g; """"" #?????????????????? | | ??????# " =%%### """"" #?????????????????? | | # #####" % ! ?# s"""" #?????????????????? | | # "%" ### s" #?????????????????? | | #### #### + sss #?????????????????? | | ???# #?# # #### s #?????????????????? | | ???# #?### #??# k#?????????????????? | | ???# #??# % = ??# @ g #?????????????????? | | ???# #??# %!%*############t###?????????????????? | | ?### ### # = "%" #???????????????????? | | ?# !### ##+##########?????????????????????????? | | ?# "T #?# # ??????????????????????????????????? | | ?# "" #?# # ?????????????????????????????????? | | ?# #?# # ?????????????????????????????????? | | ?# #?# # ????????????????????????????????? | | ?## ##?# # ???????????????????????????????? | | ##" #??# # ????????????????????H??????????? | | ####/##############????????????????????????? | | # + #????????????????? | | # ###### ##????????????????????????? | | ^ #! #???????????????????????????????????? | | #! ######+##+#?????????????????????????? | | " ! # ## #?????????????????????????? | | "" # ## #?????????????????????????? | | % "#"###### " #?????????????????????????? | | + """ #?????????????????????????? | | ###### """ #?????????????????????????? | | #????# " #?????????????????????????? | | #????# #?????????????????????????? | | #????? #????????????#####????????? | | # #??????? ??????????????# #????????? | | # ##########/###########?????# +????????? | +----------------------------------------------------+ Best States ------------- Heat Dissipation 118 Energy Generation 90 Energy Capacity 1300 Matter Stores 300 Matter Capacity 300 Sight Range 23 Robot Scan Range 20 Terrain Scan Density 10 Jamming Range 14 Power Amplification 30 Armor Coverage 600 Resistance: KI 40 Resistance: TH 30 Utility Shielding 66 Weapon Shielding 66 Phase Shifting 20 Evasion (%) 88 Targeting Accuracy 20 Target Analysis 8 Core Analysis 8 Recoil Reduction 3 Matter Filtering 50 Energy Filtering 75 Offensive Hacking 60 Defensive Hacking 12 Authchip Count 1 Item Schematics ----------------- Tesla Bomb Launcher | -2/Quarantine | Archive Exp. Matter Compressor | -2/Quarantine | Archive Coolant Network | -2/Section 7 | Archive Prc. Matter Filter | -2/Section 7 | Archive Diametric Drive | -2/Section 7 | Archive Imp. Matter Compressor | -2/Section 7 | Archive Robot Schematics ------------------ H-77 Assassin | -2/Quarantine | Archive T-07 Excavator | -2/Quarantine | Archive R-10 Processor | -2/Quarantine | Archive S-43 Plague | -2/Section 7 | Archive Fabricated ------------ Imp. Antigrav System | x2 | -5/Factory | Preloaded Adv. Hacking Suite | x1 | -5/Factory | Authchip Exp. Targeting Computer | x1 | -5/Factory | Authchip Adv. Hacking Suite | x1 | -5/Factory | Authchip Prc. Energy Filter | x1 | -4/Factory | Authchip Hvy. Reactive Plating | x1 | -4/Factory Prc. Energy Filter | x1 | -3/Research | Authchip Vortex Chain Reactor | x1 | -3/Research Repaired ---------- Heat Sink | 70% | -10/Materials Seismic Detector | 5% | -9/Materials Cooling System | 56% | -9/Materials Exp. Sensor Array | 20% | -6/Factory | Broken Antigrav Array | 15% | -5/Factory | Broken Gamma Bomb Array | 15% | -5/Factory Cmb. Antigrav System | 6% | -5/Factory Exp. Cooling System | 52% | -5/Factory Lgt. Neutrino Core | 25% | -5/Factory Hvy. Hardcell Cannon | 59% | -5/Factory Hvy. Hardcell Cannon | 99% | -4/Factory | Broken Hvy. Reactive Plating | 25% | -3/Testing Alien Tech Used ----------------- Core Expander Integrated Dissipator Dimensional Node Initializer Core Reset Matrix Subatomic Replicator Core Membrane Phase Redirector Integrated Reactor Integrated Mediator Integrity Redistributor LRC Storage LRC Armor Core Physics Calibrator Transdimensional Reconstructor Achievements -------------- Signature Confirmed Challenges ------------ None Game ------ Seed PartitionCoolingNukerbomber Manual? 0 Play Time 09:37:18 Cumulative 423.0 hours Start 2025.06.13 @ 14:47:31 End 2025.06.15 @ 02:27:02 Sessions 9 Manual Loads 0 Difficulty Rogue Special Mode None Game No. 210 Rogue 210 Adventurer 0 Explorer 0 Win Type - Total 5 Types 5/0/0/0/0/0/0/0/0/0 Lore% 63 Gallery% 67 Achievement% 63 Wizard Run 0 Options --------- Layout 0 ASCII 0 Keyboard 1 Movement Vi Keybinds 0 Fullscreen 2 Font 18/SmallcapsGlow Map View 76x50 Zoom Use 0% Tactical HUD 1 Map Filters NONE Filters NONE Steam 1 RUN: 9680e560-dd64-43ed-a90d-a3a7071054c4